Workbook

Sheet Betriebserprobung
A1: Datum | B1: Wochentag | C1: Bemerkungen | D1: Kategorie | E1: Laufleistung BW-Soll VTG 3780 7809 001-6 Ref-Kesselwagen mit AK | F1: Laufleistung BW-Soll DB Cargo 3180 4868 629-5 Ref-BraCoil mit AK | G1: Laufleistung BW-Soll VTG 3380 7932 226-3 Ref-Kesselwagen mit AK | H1: Laufleistung IGW-Soll DB Cargo 3180 4927 002-4 Inno-BraCoil | I1: Laufleistung IGW-Soll DB Cargo 3180 4927 004-0 Inno-BraCoil | J1: Laufleistung IGW-Soll DB Cargo 3180 4927 003-2 Inno-BraCoil | K1: Laufleistung RW-Soll DB Cargo 3180 4868 524-8 Ref-BraCoil | L1: Laufleistung RW-Soll DB Cargo 3180 4868 218-7 Ref-BraCoil | M1: Laufleistung IGW-Soll VTG 37 80 7834 190-6 Inno-Kesselwagen | N1: Laufleistung IGW-Soll VTG 37 80 7834 191-4 Inno-Kesselwagen | O1: Laufleistung IGW-Soll VTG 37 80 7834 192-2 Inno-Kesselwagen | P1: Laufleistung RW-Soll VTG 3387 7932 172-2 Ref-Kesselwagen | Q1: Laufleistung RW-Soll VTG 3780 7931 363-1 Ref-Kesselwagen | R1: Laufleistung IGW-Soll DB Cargo 2580 4382 001-2 Inno-ATW | S1: Laufleistung IGW-Soll DB Cargo 2580 4382 002-0 Inno-ATW | T1: Laufleistung IGW-Soll DB Cargo 2580 4382 003-8 Inno-ATW | U1: Laufleistung IGW-Soll DB Cargo 2580 4382 005-3 Inno-ATW | V1: Laufleistung IGW-Soll DB Cargo 2580 4382 004-6 Inno-ATW | W1: Laufleistung RW-Soll DB Cargo 2580 4371 415-7 Ref-ATW | X1: Laufleistung RW-Soll DB Cargo 2580 4371 372-0 Ref-ATW | Y1: Laufleistung IGW-Soll VTG 37 80 4576 781-1 Inno-CTW | Z1: Laufleistung IGW-Soll VTG 37 80 4576 782-9 Inno-CTW | AA1: Laufleistung IGW-Soll VTG 37 80 4576 783-7 Inno-CTW | AB1: Laufleistung RW-Soll VTG 3780 4561 184-5 Ref-CTW | AC1: Laufleistung RW-Soll VTG 3780 4561 185-2 Ref-CTW | AD1: Laufleistung BW-Ist VTG 3780 7809 001-6 Ref-Kesselwagen mit AK | AE1: Laufleistung BW-Ist DB Cargo 3180 4868 629-5 Ref-BraCoil mit AK | AF1: Laufleistung BW-Ist VTG 3380 7932 226-3 Ref-Kesselwagen mit AK | AG1: Laufleistung IGW-Ist DB Cargo 3180 4927 002-4 Inno-BraCoil | AH1: Laufleistung IGW-Ist DB Cargo 3180 4927 004-0 Inno-BraCoil | AI1: Laufleistung IGW-Ist DB Cargo 3180 4927 003-2 Inno-BraCoil | AJ1: Laufleistung RW-Ist DB Cargo 3180 4868 524-8 Ref-BraCoil | AK1: Laufleistung RW-Ist DB Cargo 3180 4868 218-7 Ref-BraCoil | AL1: Laufleistung IGW-Ist VTG 37 80 7834 190-6 Inno-Kesselwagen | AM1: Laufleistung IGW-Ist VTG 37 80 7834 191-4 Inno-Kesselwagen | AN1: Laufleistung IGW-Ist VTG 37 80 7834 192-2 Inno-Kesselwagen | AO1: Laufleistung RW-Ist VTG 3387 7932 172-2 Ref-Kesselwagen | AP1: Laufleistung RW-Ist VTG 3780 7931 363-1 Ref-Kesselwagen | AQ1: Laufleistung IGW-Ist DB Cargo 2580 4382 001-2 Inno-ATW | AR1: Laufleistung IGW-Ist DB Cargo 2580 4382 002-0 Inno-ATW | AS1: Laufleistung IGW-Ist DB Cargo 2580 4382 003-8 Inno-ATW (Wagen ausgefallen) | AT1: Laufleistung IGW-Ist DB Cargo 2580 4382 005-3 Inno-ATW | AU1: Laufleistung IGW-Ist DB Cargo 2580 4382 004-6 Inno-ATW | AV1: Laufleistung RW-Ist DB Cargo 2580 4371 415-7 Ref-ATW | AW1: Laufleistung RW-Ist DB Cargo 2580 4371 372-0 Ref-ATW | AX1: Laufleistung IGW-Ist VTG 37 80 4576 781-1 Inno-CTW | AY1: Laufleistung IGW-Ist VTG 37 80 4576 782-9 Inno-CTW | AZ1: Laufleistung IGW-Ist VTG 37 80 4576 783-7 Inno-CTW | BA1: Laufleistung RW-Ist VTG 3780 4561 184-5 Ref-CTW | BB1: Laufleistung RW-Ist VTG 3780 4561 185-2 Ref-CTW
A2: 2018-02-21 | B2: Mittwoch
A3: 2018-02-22 | B3: Donnerstag
A4: 2018-02-23 | B4: Freitag
A5: 2018-02-24 | B5: Samstag
A6: 2018-02-25 | B6: Sonntag
A7: 2018-02-26 | B7: Montag | D7: Projektverzögerung
A8: 2018-02-27 | B8: Dienstag | D8: Projektverzögerung
A9: 2018-02-28 | B9: Mittwoch | D9: Projektverzögerung
A10: 2018-03-01 | B10: Donnerstag | D10: Projektverzögerung
A11: 2018-03-02 | B11: Freitag | D11: Projektverzögerung
A12: 2018-03-03 | B12: Samstag | D12: Projektverzögerung
A13: 2018-03-04 | B13: Sonntag | D13: Projektverzögerung
A14: 2018-03-05 | B14: Montag | D14: Messfahrt Mi-Os-Mi | E14: 140 | F14: 140 | G14: 140 | H14: 140 | I14: 140 | J14: 140 | K14: 140 | L14: 140 | M14: 140 | N14: 140 | O14: 140 | P14: 140 | Q14: 140 | R14: 140 | S14: 140 | T14: - | U14: - | V14: - | W14: 140 | X14: 140 | Y14: 140 | Z14: 140 | AA14: 0 | AB14: 140 | AC14: 140 | AD14: 136 | AE14: 136 | AF14: 136 | AG14: 136 | AH14: 136 | AI14: 136 | AJ14: 136 | AK14: 136 | AL14: 136 | AM14: 136 | AN14: 136 | AO14: 136 | AP14: 136 | AQ14: 136 | AR14: 136 | AS14: 0 | AV14: 136 | AW14: 136 | AX14: 136 | AY14: 136 | AZ14: 0 | BA14: 136 | BB14: 136
A15: 2018-03-06 | B15: Dienstag | T15: - | U15: - | V15: - | AA15: 0 | AS15: 0
A16: 2018-03-07 | B16: Mittwoch | T16: - | U16: - | V16: - | AA16: 0 | AS16: 0
A17: 2018-03-08 | B17: Donnerstag | T17: - | U17: - | V17: - | AA17: 0 | AS17: 0
A18: 2018-03-09 | B18: Freitag | T18: - | U18: - | V18: - | AA18: 0 | AS18: 0
A19: 2018-03-10 | B19: Samstag | T19: - | U19: - | V19: - | AA19: 0 | AS19: 0
A20: 2018-03-11 | B20: Sonntag | T20: - | U20: - | V20: - | AA20: 0 | AS20: 0
A21: 2018-03-12 | B21: Montag | D21: Messfahrt Mi-H-Mi | E21: 160 | F21: 160 | G21: 160 | H21: 160 | I21: 160 | J21: 160 | K21: 160 | L21: 160 | M21: 160 | N21: 160 | O21: 160 | P21: 160 | Q21: 160 | R21: 160 | S21: 160 | T21: - | U21: - | V21: - | W21: 160 | X21: 160 | Y21: 160 | Z21: 160 | AA21: 0 | AB21: 160 | AC21: 160 | AD21: 130 | AE21: 130 | AF21: 130 | AG21: 130 | AH21: 130 | AI21: 130 | AJ21: 130 | AK21: 130 | AL21: 130 | AM21: 130 | AN21: 130 | AO21: 130 | AP21: 130 | AQ21: 130 | AR21: 130 | AS21: 0 | AV21: 130 | AW21: 130 | AX21: 130 | AY21: 130 | AZ21: 0 | BA21: 130 | BB21: 130
A22: 2018-03-13 | B22: Dienstag | D22: Zugfahrt Norddeutsche-Schleife 1 Woche_ kleinere Runde | E22: 372 | F22: 372 | G22: 372 | H22: 372 | I22: 372 | J22: 372 | K22: 372 | L22: 372 | M22: 372 | N22: 372 | O22: 372 | P22: 372 | Q22: 372 | R22: 372 | S22: 372 | T22: - | U22: - | V22: - | W22: 372 | X22: 372 | Y22: 372 | Z22: 372 | AA22: 0 | AB22: 372 | AC22: 372 | AD22: 372 | AE22: 372 | AF22: 372 | AG22: 372 | AH22: 372 | AI22: 372 | AJ22: 372 | AK22: 372 | AL22: 372 | AM22: 372 | AN22: 372 | AO22: 372 | AP22: 372 | AQ22: 372 | AR22: 372 | AS22: 0 | AV22: 372 | AW22: 372 | AX22: 372 | AY22: 372 | AZ22: 0 | BA22: 372 | BB22: 372
A23: 2018-03-14 | B23: Mittwoch | D23: Zugfahrt Norddeutsche-Schleife 1 Woche_ kleinere Runde | E23: 372 | F23: 372 | G23: 372 | H23: 372 | I23: 372 | J23: 372 | K23: 372 | L23: 372 | M23: 372 | N23: 372 | O23: 372 | P23: 372 | Q23: 372 | R23: 372 | S23: 372 | T23: - | U23: - | V23: - | W23: 372 | X23: 372 | Y23: 372 | Z23: 372 | AA23: 0 | AB23: 372 | AC23: 372 | AD23: 372 | AE23: 372 | AF23: 372 | AG23: 372 | AH23: 372 | AI23: 372 | AJ23: 372 | AK23: 372 | AL23: 372 | AM23: 372 | AN23: 372 | AO23: 372 | AP23: 372 | AQ23: 372 | AR23: 372 | AS23: 0 | AV23: 372 | AW23: 372 | AX23: 372 | AY23: 372 | AZ23: 0 | BA23: 372 | BB23: 372
A24: 2018-03-15 | B24: Donnerstag | D24: Zugfahrt Norddeutsche-Schleife 1 Woche_ kleinere Runde | E24: 372 | F24: 372 | G24: 372 | H24: 372 | I24: 372 | J24: 372 | K24: 372 | L24: 372 | M24: 372 | N24: 372 | O24: 372 | P24: 372 | Q24: 372 | R24: 372 | S24: 372 | T24: - | U24: - | V24: - | W24: 372 | X24: 372 | Y24: 372 | Z24: 372 | AA24: 0 | AB24: 372 | AC24: 372 | AD24: 372 | AE24: 372 | AF24: 372 | AG24: 372 | AH24: 372 | AI24: 372 | AJ24: 372 | AK24: 372 | AL24: 372 | AM24: 372 | AN24: 372 | AO24: 372 | AP24: 372 | AQ24: 372 | AR24: 372 | AS24: 0 | AV24: 372 | AW24: 372 | AX24: 372 | AY24: 372 | AZ24: 0 | BA24: 372 | BB24: 372
A25: 2018-03-16 | B25: Freitag | D25: Zugfahrt Norddeutsche-Schleife 1 Woche_ kleinere Runde | E25: 372 | F25: 372 | G25: 372 | H25: 372 | I25: 372 | J25: 372 | K25: 372 | L25: 372 | M25: 372 | N25: 372 | O25: 372 | P25: 372 | Q25: 372 | R25: 372 | S25: 372 | T25: - | U25: - | V25: - | W25: 372 | X25: 372 | Y25: 372 | Z25: 372 | AA25: 0 | AB25: 372 | AC25: 372 | AD25: 372 | AE25: 372 | AF25: 372 | AG25: 372 | AH25: 372 | AI25: 372 | AJ25: 372 | AK25: 372 | AL25: 372 | AM25: 372 | AN25: 372 | AO25: 372 | AP25: 372 | AQ25: 372 | AR25: 372 | AS25: 0 | AV25: 372 | AW25: 372 | AX25: 372 | AY25: 372 | AZ25: 0 | BA25: 372 | BB25: 372
A26: 2018-03-17 | B26: Samstag | T26: - | U26: - | V26: - | AA26: 0 | AS26: 0 | AZ26: 0
A27: 2018-03-18 | B27: Sonntag | T27: - | U27: - | V27: - | AA27: 0 | AS27: 0 | AZ27: 0
A28: 2018-03-19 | B28: Montag | C28: Josefstag CH | D28: Messfahrt Mi-Os-Mi | E28: 140 | F28: 140 | G28: 140 | H28: 140 | I28: 140 | J28: 140 | K28: 140 | L28: 140 | M28: 140 | N28: 140 | O28: 140 | P28: 140 | Q28: 140 | R28: 140 | S28: 140 | T28: - | U28: - | V28: - | W28: 140 | X28: 140 | Y28: 140 | Z28: 140 | AA28: 0 | AB28: 140 | AC28: 140 | AD28: 136 | AE28: 136 | AF28: 136 | AG28: 136 | AH28: 136 | AI28: 136 | AJ28: 136 | AK28: 136 | AL28: 136 | AM28: 136 | AN28: 136 | AO28: 136 | AP28: 136 | AQ28: 136 | AR28: 136 | AS28: 0 | AV28: 136 | AW28: 136 | AX28: 136 | AY28: 136 | AZ28: 0 | BA28: 136 | BB28: 136
A29: 2018-03-20 | B29: Dienstag | D29: Zugfahrt Norddeutsche-Schleife 1 Woche_ kleinere Runde | E29: 372 | F29: 372 | G29: 372 | H29: 372 | I29: 372 | J29: 372 | K29: 372 | L29: 372 | M29: 372 | N29: 372 | O29: 372 | P29: 372 | Q29: 372 | R29: 372 | S29: 372 | T29: - | U29: - | V29: - | W29: 372 | X29: 372 | Y29: 372 | Z29: 372 | AA29: 0 | AB29: 372 | AC29: 372 | AD29: 400 | AE29: 400 | AF29: 400 | AG29: 400 | AH29: 400 | AI29: 400 | AJ29: 400 | AK29: 400 | AL29: 400 | AM29: 400 | AN29: 400 | AO29: 400 | AP29: 400 | AQ29: 400 | AR29: 400 | AS29: 0 | AV29: 400 | AW29: 400 | AX29: 400 | AY29: 400 | AZ29: 0 | BA29: 400 | BB29: 400
A30: 2018-03-21 | B30: Mittwoch | D30: Zugfahrt Norddeutsche-Schleife 1 Woche_ kleinere Runde | E30: 372 | F30: 372 | G30: 372 | H30: 372 | I30: 372 | J30: 372 | K30: 372 | L30: 372 | M30: 372 | N30: 372 | O30: 372 | P30: 372 | Q30: 372 | R30: 372 | S30: 372 | T30: - | U30: - | V30: - | W30: 372 | X30: 372 | Y30: 372 | Z30: 372 | AA30: 0 | AB30: 372 | AC30: 372 | AD30: 372 | AE30: 372 | AF30: 372 | AG30: 372 | AH30: 372 | AI30: 372 | AJ30: 372 | AK30: 372 | AL30: 372 | AM30: 372 | AN30: 372 | AO30: 372 | AP30: 372 | AQ30: 372 | AR30: 372 | AS30: 0 | AV30: 372 | AW30: 372 | AX30: 372 | AY30: 372 | AZ30: 0 | BA30: 372 | BB30: 372
A31: 2018-03-22 | B31: Donnerstag | D31: Zugfahrt Norddeutsche-Schleife 1 Woche_ kleinere Runde | E31: 372 | F31: 372 | G31: 372 | H31: 372 | I31: 372 | J31: 372 | K31: 372 | L31: 372 | M31: 372 | N31: 372 | O31: 372 | P31: 372 | Q31: 372 | R31: 372 | S31: 372 | T31: - | U31: - | V31: - | W31: 372 | X31: 372 | Y31: 372 | Z31: 372 | AA31: 0 | AB31: 372 | AC31: 372 | AD31: 372 | AE31: 372 | AF31: 372 | AG31: 372 | AH31: 372 | AI31: 372 | AJ31: 372 | AK31: 372 | AL31: 372 | AM31: 372 | AN31: 372 | AO31: 372 | AP31: 372 | AQ31: 372 | AR31: 372 | AS31: 0 | AV31: 372 | AW31: 372 | AX31: 372 | AY31: 372 | AZ31: 0 | BA31: 372 | BB31: 372
A32: 2018-03-23 | B32: Freitag | D32: Zugfahrt Norddeutsche-Schleife 1 Woche_ kleinere Runde | E32: 372 | F32: 372 | G32: 372 | H32: 372 | I32: 372 | J32: 372 | K32: 372 | L32: 372 | M32: 372 | N32: 372 | O32: 372 | P32: 372 | Q32: 372 | R32: 372 | S32: 372 | T32: - | U32: - | V32: - | W32: 372 | X32: 372 | Y32: 372 | Z32: 372 | AA32: 0 | AB32: 372 | AC32: 372 | AD32: 372 | AE32: 372 | AF32: 372 | AG32: 372 | AH32: 372 | AI32: 372 | AJ32: 372 | AK32: 372 | AL32: 372 | AM32: 372 | AN32: 372 | AO32: 372 | AP32: 372 | AQ32: 372 | AR32: 372 | AS32: 0 | AV32: 372 | AW32: 372 | AX32: 372 | AY32: 372 | AZ32: 0 | BA32: 372 | BB32: 372
A33: 2018-03-24 | B33: Samstag | T33: - | U33: - | V33: - | AA33: 0 | AS33: 0 | AZ33: 0
A34: 2018-03-25 | B34: Sonntag | T34: - | U34: - | V34: - | AA34: 0 | AS34: 0 | AZ34: 0
A35: 2018-03-26 | B35: Montag | D35: Zugfahrt Norddeutsche-Schleife 1 Woche_ kleinere Runde | E35: 372 | F35: 372 | G35: 372 | H35: 372 | I35: 372 | J35: 372 | K35: 372 | L35: 372 | M35: 372 | N35: 372 | O35: 372 | P35: 372 | Q35: 372 | R35: 372 | S35: 372 | T35: - | U35: - | V35: - | W35: 372 | X35: 372 | Y35: 372 | Z35: 372 | AA35: 0 | AB35: 372 | AC35: 372 | AD35: 372 | AE35: 372 | AF35: 372 | AG35: 372 | AH35: 372 | AI35: 372 | AJ35: 372 | AK35: 372 | AL35: 372 | AM35: 372 | AN35: 372 | AO35: 372 | AP35: 372 | AQ35: 372 | AR35: 372 | AS35: 0 | AV35: 372 | AW35: 372 | AX35: 372 | AY35: 372 | AZ35: 0 | BA35: 372 | BB35: 372
A36: 2018-03-27 | B36: Dienstag | D36: Zugfahrt Norddeutsche-Schleife 1 Woche_ kleinere Runde | E36: 372 | F36: 372 | G36: 372 | H36: 372 | I36: 372 | J36: 372 | K36: 372 | L36: 372 | M36: 372 | N36: 372 | O36: 372 | P36: 372 | Q36: 372 | R36: 372 | S36: 372 | T36: - | U36: - | V36: - | W36: 372 | X36: 372 | Y36: 372 | Z36: 372 | AA36: 0 | AB36: 372 | AC36: 372 | AD36: 372 | AE36: 372 | AF36: 372 | AG36: 372 | AH36: 372 | AI36: 372 | AJ36: 372 | AK36: 372 | AL36: 372 | AM36: 372 | AN36: 372 | AO36: 372 | AP36: 372 | AQ36: 372 | AR36: 372 | AS36: 0 | AV36: 372 | AW36: 372 | AX36: 372 | AY36: 372 | AZ36: 0 | BA36: 372 | BB36: 372
A37: 2018-03-28 | B37: Mittwoch | D37: Zugfahrt Norddeutsche-Schleife 1 Woche_ kleinere Runde | E37: 372 | F37: 372 | G37: 372 | H37: 372 | I37: 372 | J37: 372 | K37: 372 | L37: 372 | M37: 372 | N37: 372 | O37: 372 | P37: 372 | Q37: 372 | R37: 372 | S37: 372 | T37: - | U37: - | V37: - | W37: 372 | X37: 372 | Y37: 372 | Z37: 372 | AA37: 0 | AB37: 372 | AC37: 372 | AD37: 372 | AE37: 372 | AF37: 372 | AG37: 372 | AH37: 372 | AI37: 372 | AJ37: 372 | AK37: 372 | AL37: 372 | AM37: 372 | AN37: 372 | AO37: 372 | AP37: 372 | AQ37: 372 | AR37: 372 | AS37: 0 | AV37: 372 | AW37: 372 | AX37: 372 | AY37: 372 | AZ37: 0 | BA37: 372 | BB37: 372
A38: 2018-03-29 | B38: Donnerstag | C38: Gründonnerstag DA | D38: Zugfahrt Norddeutsche-Schleife 1 Woche_ kleinere Runde | E38: 372 | F38: 372 | G38: 372 | H38: 372 | I38: 372 | J38: 372 | K38: 372 | L38: 372 | M38: 372 | N38: 372 | O38: 372 | P38: 372 | Q38: 372 | R38: 372 | S38: 372 | T38: - | U38: - | V38: - | W38: 372 | X38: 372 | Y38: 372 | Z38: 372 | AA38: 0 | AB38: 372 | AC38: 372 | AD38: 372 | AE38: 372 | AF38: 372 | AG38: 372 | AH38: 372 | AI38: 372 | AJ38: 372 | AK38: 372 | AL38: 372 | AM38: 372 | AN38: 372 | AO38: 372 | AP38: 372 | AQ38: 372 | AR38: 372 | AS38: 0 | AV38: 372 | AW38: 372 | AX38: 372 | AY38: 372 | AZ38: 0 | BA38: 372 | BB38: 372
A39: 2018-03-30 | B39: Freitag | C39: Karfreitag | T39: - | U39: - | V39: - | AA39: 0 | AS39: 0 | AZ39: 0
A40: 2018-03-31 | B40: Samstag | T40: - | U40: - | V40: - | AA40: 0 | AS40: 0 | AZ40: 0
A41: 2018-04-01 | B41: Sonntag | C41: Ostersonntag | T41: - | U41: - | V41: - | AA41: 0 | AS41: 0 | AZ41: 0
A42: 2018-04-02 | B42: Montag | C42: Ostermontag | T42: - | U42: - | V42: - | AA42: 0 | AS42: 0 | AZ42: 0
A43: 2018-04-03 | B43: Dienstag | D43: Zugfahrt Norddeutsche-Schleife 1 Woche_ kleinere Runde | E43: 372 | F43: 372 | G43: 372 | H43: 372 | I43: 372 | J43: 372 | K43: 372 | L43: 372 | M43: 372 | N43: 372 | O43: 372 | P43: 372 | Q43: 372 | R43: 372 | S43: 372 | T43: - | U43: - | V43: - | W43: 372 | X43: 372 | Y43: 372 | Z43: 372 | AA43: 0 | AB43: 372 | AC43: 372 | AD43: 464 | AE43: 464 | AF43: 464 | AG43: 464 | AH43: 464 | AI43: 464 | AJ43: 464 | AK43: 464 | AL43: 464 | AM43: 464 | AN43: 464 | AO43: 464 | AP43: 464 | AQ43: 464 | AR43: 464 | AS43: 0 | AV43: 464 | AW43: 464 | AX43: 464 | AY43: 464 | AZ43: 0 | BA43: 464 | BB43: 464
A44: 2018-04-04 | B44: Mittwoch | D44: Zugfahrt Norddeutsche-Schleife 1 Woche_ kleinere Runde | E44: 372 | F44: 372 | G44: 372 | H44: 372 | I44: 372 | J44: 372 | K44: 372 | L44: 372 | M44: 372 | N44: 372 | O44: 372 | P44: 372 | Q44: 372 | R44: 372 | S44: 372 | T44: - | U44: - | V44: - | W44: 372 | X44: 372 | Y44: 372 | Z44: 372 | AA44: 0 | AB44: 372 | AC44: 372 | AD44: 464 | AE44: 464 | AF44: 464 | AG44: 464 | AH44: 464 | AI44: 464 | AJ44: 464 | AK44: 464 | AL44: 464 | AM44: 464 | AN44: 464 | AO44: 464 | AP44: 464 | AQ44: 464 | AR44: 464 | AS44: 0 | AV44: 464 | AW44: 464 | AX44: 464 | AY44: 464 | AZ44: 0 | BA44: 464 | BB44: 464
A45: 2018-04-05 | B45: Donnerstag | D45: Zugfahrt Norddeutsche-Schleife 1 Woche_ kleinere Runde | E45: 372 | F45: 372 | G45: 372 | H45: 372 | I45: 372 | J45: 372 | K45: 372 | L45: 372 | M45: 372 | N45: 372 | O45: 372 | P45: 372 | Q45: 372 | R45: 372 | S45: 372 | T45: - | U45: - | V45: - | W45: 372 | X45: 372 | Y45: 372 | Z45: 372 | AA45: 0 | AB45: 372 | AC45: 372 | AD45: 372 | AE45: 372 | AF45: 372 | AG45: 372 | AH45: 372 | AI45: 372 | AJ45: 372 | AK45: 372 | AL45: 372 | AM45: 372 | AN45: 372 | AO45: 372 | AP45: 372 | AQ45: 372 | AR45: 372 | AS45: 0 | AV45: 372 | AW45: 372 | AX45: 372 | AY45: 372 | AZ45: 0 | BA45: 372 | BB45: 372
A46: 2018-04-06 | B46: Freitag | D46: Zugfahrt Norddeutsche-Schleife 1 Woche_ kleinere Runde | E46: 372 | F46: 372 | G46: 372 | H46: 372 | I46: 372 | J46: 372 | K46: 372 | L46: 372 | M46: 372 | N46: 372 | O46: 372 | P46: 372 | Q46: 372 | R46: 372 | S46: 372 | T46: - | U46: - | V46: - | W46: 372 | X46: 372 | Y46: 372 | Z46: 372 | AA46: 0 | AB46: 372 | AC46: 372 | AD46: 372 | AE46: 372 | AF46: 372 | AG46: 372 | AH46: 372 | AI46: 372 | AJ46: 372 | AK46: 372 | AL46: 372 | AM46: 372 | AN46: 372 | AO46: 372 | AP46: 372 | AQ46: 372 | AR46: 372 | AS46: 0 | AV46: 372 | AW46: 372 | AX46: 372 | AY46: 372 | AZ46: 0 | BA46: 372 | BB46: 372
A47: 2018-04-07 | B47: Samstag | T47: - | U47: - | V47: - | AA47: 0 | AS47: 0 | AZ47: 0
A48: 2018-04-08 | B48: Sonntag | T48: - | U48: - | V48: - | AA48: 0 | AS48: 0 | AZ48: 0
A49: 2018-04-09 | B49: Montag | D49: Zugfahrt Norddeutsche-Schleife 1 Woche_ kleinere Runde | E49: 372 | F49: 372 | G49: 372 | H49: 372 | I49: 372 | J49: 372 | K49: 372 | L49: 372 | M49: 372 | N49: 372 | O49: 372 | P49: 372 | Q49: 372 | R49: 372 | S49: 372 | T49: - | U49: - | V49: - | W49: 372 | X49: 372 | Y49: 372 | Z49: 372 | AA49: 0 | AB49: 372 | AC49: 372 | AD49: 372 | AE49: 372 | AF49: 372 | AG49: 372 | AH49: 372 | AI49: 372 | AJ49: 372 | AK49: 372 | AL49: 372 | AM49: 372 | AN49: 372 | AO49: 372 | AP49: 372 | AQ49: 372 | AR49: 372 | AS49: 0 | AV49: 372 | AW49: 372 | AX49: 372 | AY49: 372 | AZ49: 0 | BA49: 372 | BB49: 372
A50: 2018-04-10 | B50: Dienstag | D50: Zugfahrt Norddeutsche-Schleife 1 Woche_ kleinere Runde | E50: 372 | F50: 372 | G50: 372 | H50: 372 | I50: 372 | J50: 372 | K50: 372 | L50: 372 | M50: 372 | N50: 372 | O50: 372 | P50: 372 | Q50: 372 | R50: 372 | S50: 372 | T50: - | U50: - | V50: - | W50: 372 | X50: 372 | Y50: 372 | Z50: 372 | AA50: 0 | AB50: 372 | AC50: 372 | AD50: 372 | AE50: 372 | AF50: 372 | AG50: 372 | AH50: 372 | AI50: 372 | AJ50: 372 | AK50: 372 | AL50: 372 | AM50: 372 | AN50: 372 | AO50: 372 | AP50: 372 | AQ50: 372 | AR50: 372 | AS50: 0 | AV50: 372 | AW50: 372 | AX50: 372 | AY50: 372 | AZ50: 0 | BA50: 372 | BB50: 372
A51: 2018-04-11 | B51: Mittwoch | D51: Zugfahrt Norddeutsche-Schleife 1 Woche (2 Schichtbetrieb)_ kleinere Runde | E51: 744 | F51: 744 | G51: 744 | H51: 744 | I51: 744 | J51: 744 | K51: 744 | L51: 744 | M51: 744 | N51: 744 | O51: 744 | P51: 744 | Q51: 744 | R51: 744 | S51: 744 | T51: - | U51: - | V51: - | W51: 744 | X51: 744 | Y51: 744 | Z51: 744 | AA51: 0 | AB51: 744 | AC51: 744 | AD51: 372 | AE51: 372 | AF51: 372 | AG51: 372 | AH51: 372 | AI51: 372 | AJ51: 372 | AK51: 372 | AL51: 372 | AM51: 372 | AN51: 372 | AO51: 372 | AP51: 372 | AQ51: 372 | AR51: 372 | AS51: 0 | AV51: 372 | AW51: 372 | AX51: 372 | AY51: 372 | AZ51: 0 | BA51: 372 | BB51: 372
A52: 2018-04-12 | B52: Donnerstag | D52: Zugfahrt Norddeutsche-Schleife 1 Woche (2 Schichtbetrieb)_ kleinere Runde | E52: 744 | F52: 744 | G52: 744 | H52: 744 | I52: 744 | J52: 744 | K52: 744 | L52: 744 | M52: 744 | N52: 744 | O52: 744 | P52: 744 | Q52: 744 | R52: 744 | S52: 744 | T52: - | U52: - | V52: - | W52: 744 | X52: 744 | Y52: 744 | Z52: 744 | AA52: 0 | AB52: 744 | AC52: 744 | AD52: 744 | AE52: 744 | AF52: 744 | AG52: 744 | AH52: 744 | AI52: 744 | AJ52: 744 | AK52: 744 | AL52: 744 | AM52: 744 | AN52: 744 | AO52: 744 | AP52: 744 | AQ52: 744 | AR52: 744 | AS52: 0 | AV52: 744 | AW52: 744 | AX52: 744 | AY52: 744 | AZ52: 0 | BA52: 744 | BB52: 744
A53: 2018-04-13 | B53: Freitag | D53: Zugfahrt Norddeutsche-Schleife 1 Woche_ kleinere Runde | E53: 372 | F53: 372 | G53: 372 | H53: 372 | I53: 372 | J53: 372 | K53: 372 | L53: 372 | M53: 372 | N53: 372 | O53: 372 | P53: 372 | Q53: 372 | R53: 372 | S53: 372 | T53: - | U53: - | V53: - | W53: 372 | X53: 372 | Y53: 372 | Z53: 372 | AA53: 0 | AB53: 372 | AC53: 372 | AD53: 372 | AE53: 372 | AF53: 372 | AG53: 372 | AH53: 372 | AI53: 372 | AJ53: 372 | AK53: 372 | AL53: 372 | AM53: 372 | AN53: 372 | AO53: 372 | AP53: 372 | AQ53: 372 | AR53: 372 | AS53: 0 | AV53: 372 | AW53: 372 | AX53: 372 | AY53: 372 | AZ53: 0 | BA53: 372 | BB53: 372
A54: 2018-04-14 | B54: Samstag | C54: Keine Fahrten aufgrund fehlender Tf | D54: Zugfahrt Norddeutsche-Schleife 1 Woche (2 Schichtbetrieb)_ kleinere Runde | T54: - | U54: - | V54: - | AA54: 0 | AD54: 0 | AE54: 0 | AF54: 0 | AG54: 0 | AH54: 0 | AI54: 0 | AJ54: 0 | AK54: 0 | AL54: 0 | AM54: 0 | AN54: 0 | AO54: 0 | AP54: 0 | AQ54: 0 | AR54: 0 | AS54: 0 | AV54: 0 | AW54: 0 | AX54: 0 | AY54: 0 | AZ54: 0 | BA54: 0 | BB54: 0
A55: 2018-04-15 | B55: Sonntag | C55: Keine Fahrten aufgrund fehlender Tf | D55: Zugüberführung Minden <--> Nürnberg | T55: - | U55: - | V55: - | AA55: 0 | AD55: 0 | AE55: 0 | AF55: 0 | AG55: 0 | AH55: 0 | AI55: 0 | AJ55: 0 | AK55: 0 | AL55: 0 | AM55: 0 | AN55: 0 | AO55: 0 | AP55: 0 | AQ55: 0 | AR55: 0 | AS55: 0 | AV55: 0 | AW55: 0 | AX55: 0 | AY55: 0 | AZ55: 0 | BA55: 0 | BB55: 0
A56: 2018-04-16 | B56: Montag | C56: Lärmmessung - Donauwörth- Fa. Prose. Verspätete Überführung aufgrund fehlenderer TF DB Cargo/ VTG/ hwh | D56: Zugfahrt Süddeutsche-Schleife Woche (2 Schichtbetrieb) | E56: 836 | F56: 836 | G56: 836 | H56: 836 | I56: 836 | J56: 836 | K56: 836 | L56: 836 | M56: 836 | N56: 836 | O56: 836 | P56: 836 | Q56: 836 | R56: 836 | S56: 836 | T56: - | U56: - | V56: - | W56: 836 | X56: 836 | Y56: 836 | Z56: 836 | AA56: 0 | AB56: 836 | AC56: 836 | AD56: 627 | AE56: 627 | AF56: 627 | AG56: 627 | AH56: 627 | AI56: 627 | AJ56: 627 | AK56: 627 | AL56: 627 | AM56: 627 | AN56: 627 | AO56: 627 | AP56: 627 | AQ56: 627 | AR56: 627 | AS56: 0 | AV56: 627 | AW56: 627 | AX56: 627 | AY56: 627 | AZ56: 0 | BA56: 627 | BB56: 627
A57: 2018-04-17 | B57: Dienstag | C57: Lärmmessung - Donauwörth- Fa. Prose | D57: Zugfahrt Süddeutsche-Schleife Woche (2 Schichtbetrieb) | E57: 836 | F57: 836 | G57: 836 | H57: 836 | I57: 836 | J57: 836 | K57: 836 | L57: 836 | M57: 836 | N57: 836 | O57: 836 | P57: 836 | Q57: 836 | R57: 836 | S57: 836 | T57: - | U57: - | V57: - | W57: 836 | X57: 836 | Y57: 836 | Z57: 836 | AA57: 0 | AB57: 836 | AC57: 836 | AD57: 858 | AE57: 858 | AF57: 858 | AG57: 858 | AH57: 858 | AI57: 858 | AJ57: 858 | AK57: 858 | AL57: 858 | AM57: 858 | AN57: 858 | AO57: 858 | AP57: 858 | AQ57: 858 | AR57: 858 | AS57: 0 | AV57: 858 | AW57: 858 | AX57: 858 | AY57: 858 | AZ57: 0 | BA57: 858 | BB57: 858
A58: 2018-04-18 | B58: Mittwoch | C58: Lärmmessung - Donauwörth- Fa. Prose | D58: Zugfahrt Süddeutsche-Schleife Woche (2 Schichtbetrieb) | E58: 836 | F58: 836 | G58: 836 | H58: 836 | I58: 836 | J58: 836 | K58: 836 | L58: 836 | M58: 836 | N58: 836 | O58: 836 | P58: 836 | Q58: 836 | R58: 836 | S58: 836 | T58: - | U58: - | V58: - | W58: 836 | X58: 836 | Y58: 836 | Z58: 836 | AA58: 0 | AB58: 836 | AC58: 836 | AD58: 858 | AE58: 858 | AF58: 858 | AG58: 858 | AH58: 858 | AI58: 858 | AJ58: 858 | AK58: 858 | AL58: 858 | AM58: 858 | AN58: 858 | AO58: 858 | AP58: 858 | AQ58: 858 | AR58: 858 | AS58: 0 | AV58: 858 | AW58: 858 | AX58: 858 | AY58: 858 | AZ58: 0 | BA58: 858 | BB58: 858
A59: 2018-04-19 | B59: Donnerstag | D59: Zugfahrt Süddeutsche-Schleife Woche (2 Schichtbetrieb) | E59: 836 | F59: 836 | G59: 836 | H59: 836 | I59: 836 | J59: 836 | K59: 836 | L59: 836 | M59: 836 | N59: 836 | O59: 836 | P59: 836 | Q59: 836 | R59: 836 | S59: 836 | T59: - | U59: - | V59: - | W59: 836 | X59: 836 | Y59: 836 | Z59: 836 | AA59: 0 | AB59: 836 | AC59: 836 | AD59: 858 | AE59: 858 | AF59: 858 | AG59: 858 | AH59: 858 | AI59: 858 | AJ59: 858 | AK59: 858 | AL59: 858 | AM59: 858 | AN59: 858 | AO59: 858 | AP59: 858 | AQ59: 858 | AR59: 858 | AS59: 0 | AV59: 858 | AW59: 858 | AX59: 858 | AY59: 858 | AZ59: 0 | BA59: 858 | BB59: 858
A60: 2018-04-20 | B60: Freitag | D60: Zugüberführung Nürnberg <--> Dresden Friedrichstadt | E60: 445 | F60: 445 | G60: 445 | H60: 445 | I60: 445 | J60: 445 | K60: 445 | L60: 445 | M60: 445 | N60: 445 | O60: 445 | P60: 445 | Q60: 445 | R60: 445 | S60: 445 | T60: - | U60: - | V60: - | W60: 445 | X60: 445 | Y60: 445 | Z60: 445 | AA60: 0 | AB60: 445 | AC60: 445 | AD60: 575 | AE60: 575 | AF60: 575 | AG60: 575 | AH60: 575 | AI60: 575 | AJ60: 575 | AK60: 575 | AL60: 575 | AM60: 575 | AN60: 575 | AO60: 575 | AP60: 575 | AQ60: 575 | AR60: 575 | AS60: 0 | AV60: 575 | AW60: 575 | AX60: 575 | AY60: 575 | AZ60: 0 | BA60: 575 | BB60: 575
A61: 2018-04-21 | B61: Samstag | C61: Keine Fahrten aufgrund fehlender Tf | D61: Zugfahrt Ostdeutsche-Schleife Wochenende (2 Schichtbetrieb) | E61: 0 | F61: 0 | G61: 0 | H61: 0 | I61: 0 | J61: 0 | K61: 0 | L61: 0 | M61: 0 | N61: 0 | O61: 0 | P61: 0 | Q61: 0 | R61: 0 | S61: 0 | T61: - | U61: - | V61: - | W61: 0 | X61: 0 | Y61: 0 | Z61: 0 | AA61: 0 | AB61: 0 | AC61: 0 | AS61: 0 | AZ61: 0
A62: 2018-04-22 | B62: Sonntag | C62: Keine Fahrten aufgrund fehlender Tf | D62: Zugfahrt Ostdeutsche-Schleife Wochenende (2 Schichtbetrieb) | E62: 0 | F62: 0 | G62: 0 | H62: 0 | I62: 0 | J62: 0 | K62: 0 | L62: 0 | M62: 0 | N62: 0 | O62: 0 | P62: 0 | Q62: 0 | R62: 0 | S62: 0 | T62: - | U62: - | V62: - | W62: 0 | X62: 0 | Y62: 0 | Z62: 0 | AA62: 0 | AB62: 0 | AC62: 0 | AS62: 0 | AZ62: 0
A63: 2018-04-23 | B63: Montag | C63: Geplante Schleife konnte aufgrund einer Baustelle nicht befahren werden. Kurzfristig wurde eine andere Schleife geplant, organisiert und befahren | D63: Zugfahrt Ostdeutsche-Schleife Woche (2 Schichtbetrieb) | E63: 840 | F63: 840 | G63: 840 | H63: 840 | I63: 840 | J63: 840 | K63: 840 | L63: 840 | M63: 840 | N63: 840 | O63: 840 | P63: 840 | Q63: 840 | R63: 840 | S63: 840 | T63: - | U63: - | V63: - | W63: 840 | X63: 840 | Y63: 840 | Z63: 840 | AA63: 0 | AB63: 840 | AC63: 840 | AD63: 615 | AE63: 615 | AF63: 615 | AG63: 615 | AH63: 615 | AI63: 615 | AJ63: 615 | AK63: 615 | AL63: 615 | AM63: 615 | AN63: 615 | AO63: 615 | AP63: 615 | AQ63: 615 | AR63: 615 | AS63: 0 | AV63: 615 | AW63: 615 | AX63: 615 | AY63: 615 | AZ63: 0 | BA63: 615 | BB63: 615
A64: 2018-04-24 | B64: Dienstag | D64: Zugfahrt Ostdeutsche-Schleife Woche (2 Schichtbetrieb) | E64: 840 | F64: 840 | G64: 840 | H64: 840 | I64: 840 | J64: 840 | K64: 840 | L64: 840 | M64: 840 | N64: 840 | O64: 840 | P64: 840 | Q64: 840 | R64: 840 | S64: 840 | T64: - | U64: - | V64: - | W64: 840 | X64: 840 | Y64: 840 | Z64: 840 | AA64: 0 | AB64: 840 | AC64: 840 | AD64: 615 | AE64: 615 | AF64: 615 | AG64: 615 | AH64: 615 | AI64: 615 | AJ64: 615 | AK64: 615 | AL64: 615 | AM64: 615 | AN64: 615 | AO64: 615 | AP64: 615 | AQ64: 615 | AR64: 615 | AS64: 0 | AV64: 615 | AW64: 615 | AX64: 615 | AY64: 615 | AZ64: 0 | BA64: 615 | BB64: 615
A65: 2018-04-25 | B65: Mittwoch | D65: Zugfahrt Ostdeutsche-Schleife Woche (2 Schichtbetrieb) | E65: 840 | F65: 840 | G65: 840 | H65: 840 | I65: 840 | J65: 840 | K65: 840 | L65: 840 | M65: 840 | N65: 840 | O65: 840 | P65: 840 | Q65: 840 | R65: 840 | S65: 840 | T65: - | U65: - | V65: - | W65: 840 | X65: 840 | Y65: 840 | Z65: 840 | AA65: 0 | AB65: 840 | AC65: 840 | AD65: 615 | AE65: 615 | AF65: 615 | AG65: 615 | AH65: 615 | AI65: 615 | AJ65: 615 | AK65: 615 | AL65: 615 | AM65: 615 | AN65: 615 | AO65: 615 | AP65: 615 | AQ65: 615 | AR65: 615 | AS65: 0 | AV65: 615 | AW65: 615 | AX65: 615 | AY65: 615 | AZ65: 0 | BA65: 615 | BB65: 615
A66: 2018-04-26 | B66: Donnerstag | D66: Zugüberführung Dresden Friedrichstadt --> Minden & 1 Schichtbetrieb | E66: 442 | F66: 442 | G66: 442 | H66: 442 | I66: 442 | J66: 442 | K66: 442 | L66: 442 | M66: 442 | N66: 442 | O66: 442 | P66: 442 | Q66: 442 | R66: 442 | S66: 442 | T66: - | U66: - | V66: - | W66: 442 | X66: 442 | Y66: 442 | Z66: 442 | AA66: 0 | AB66: 442 | AC66: 442 | AD66: 491 | AE66: 491 | AF66: 491 | AG66: 491 | AH66: 491 | AI66: 491 | AJ66: 491 | AK66: 491 | AL66: 491 | AM66: 491 | AN66: 491 | AO66: 491 | AP66: 491 | AQ66: 491 | AR66: 491 | AS66: 0 | AV66: 491 | AW66: 491 | AX66: 491 | AY66: 491 | AZ66: 0 | BA66: 491 | BB66: 491
A67: 2018-04-27 | B67: Freitag | D67: Zugfahrt Norddeutsche-Schleife 1 Woche_ größere Runde | E67: 464 | F67: 464 | G67: 464 | H67: 464 | I67: 464 | J67: 464 | K67: 464 | L67: 464 | M67: 464 | N67: 464 | O67: 464 | P67: 464 | Q67: 464 | R67: 464 | S67: 464 | T67: - | U67: - | V67: - | W67: 464 | X67: 464 | Y67: 464 | Z67: 464 | AA67: 0 | AB67: 464 | AC67: 464 | AD67: 464 | AE67: 464 | AF67: 464 | AG67: 464 | AH67: 464 | AI67: 464 | AJ67: 464 | AK67: 464 | AL67: 464 | AM67: 464 | AN67: 464 | AO67: 464 | AP67: 464 | AQ67: 464 | AR67: 464 | AS67: 0 | AV67: 464 | AW67: 464 | AX67: 464 | AY67: 464 | AZ67: 0 | BA67: 464 | BB67: 464
A68: 2018-04-28 | B68: Samstag | T68: - | U68: - | V68: - | AA68: 0
A69: 2018-04-29 | B69: Sonntag | T69: - | U69: - | V69: - | AA69: 0
A70: 2018-04-30 | B70: Montag | C70: Aufgrund der Flachstellen wurden 6 Wagen ins Werk überführt, um die Radsätze zu tauschen. | D70: Zugfahrt Norddeutsche-Schleife 1 Woche_ größere Runde | E70: 464 | F70: 464 | G70: 464 | H70: 464 | I70: 464 | J70: 464 | K70: 464 | L70: 464 | M70: 464 | N70: 464 | O70: 464 | P70: 464 | Q70: 464 | R70: 464 | S70: 464 | T70: - | U70: - | V70: - | W70: 464 | X70: 464 | Y70: 464 | Z70: 464 | AA70: 0 | AB70: 464 | AC70: 464 | AD70: 0 | AE70: 0 | AF70: 0 | AG70: 464 | AH70: 464 | AI70: 464 | AJ70: 464 | AK70: 464 | AL70: 464 | AM70: 464 | AN70: 464 | AO70: 0 | AP70: 0 | AQ70: 464 | AR70: 464 | AS70: 0 | AV70: 464 | AW70: 464 | AX70: 464 | AY70: 464 | AZ70: 0 | BA70: 0 | BB70: 464
A71: 2018-05-01 | B71: Dienstag | C71: Keine Verschleißmessung, Feiertag | T71: - | U71: - | V71: - | AA71: 0
A72: 2018-05-02 | B72: Mittwoch | C72: Bestimmung der Verschleißkennwerte an Bremsbelägen und Bremsklötzen | D72: Verschleißmessung klein | E72: 0 | F72: 0 | G72: 0 | H72: 0 | I72: 0 | J72: 0 | K72: 0 | L72: 0 | M72: 0 | N72: 0 | O72: 0 | P72: 0 | Q72: 0 | R72: 0 | S72: 0 | T72: - | U72: - | V72: - | W72: 0 | X72: 0 | Y72: 0 | Z72: 0 | AA72: 0 | AB72: 0 | AC72: 0
A73: 2018-05-03 | B73: Donnerstag | C73: Bestimmung der Verschleißkennwerte an Bremsbelägen und Bremsklötzen | D73: Verschleißmessung klein | E73: 0 | F73: 0 | G73: 0 | H73: 0 | I73: 0 | J73: 0 | K73: 0 | L73: 0 | M73: 0 | N73: 0 | O73: 0 | P73: 0 | Q73: 0 | R73: 0 | S73: 0 | T73: - | U73: - | V73: - | W73: 0 | X73: 0 | Y73: 0 | Z73: 0 | AA73: 0 | AB73: 0 | AC73: 0
A74: 2018-05-04 | B74: Freitag | C74: Florianstag AT (Oberö.) | D74: Zugfahrt Norddeutsche-Schleife 1 Woche_ kleinere Runde | E74: 372 | F74: 372 | G74: 372 | H74: 372 | I74: 372 | J74: 372 | K74: 372 | L74: 372 | M74: 372 | N74: 372 | O74: 372 | P74: 372 | Q74: 372 | R74: 372 | S74: 372 | T74: - | U74: - | V74: - | W74: 372 | X74: 372 | Y74: 372 | Z74: 372 | AA74: 0 | AB74: 372 | AC74: 372 | AD74: 0 | AE74: 0 | AF74: 0 | AG74: 482 | AH74: 482 | AI74: 482 | AJ74: 482 | AK74: 482 | AL74: 482 | AM74: 482 | AN74: 482 | AO74: 0 | AP74: 0 | AQ74: 482 | AR74: 482 | AS74: 0 | AV74: 482 | AW74: 482 | AX74: 482 | AY74: 482 | AZ74: 0 | BA74: 0 | BB74: 482
A75: 2018-05-05 | B75: Samstag | T75: - | U75: - | V75: - | AA75: 0
A76: 2018-05-06 | B76: Sonntag | T76: - | U76: - | V76: - | AA76: 0
A77: 2018-05-07 | B77: Montag | D77: Zugfahrt Norddeutsche-Schleife 1 Woche (2 Schichtbetrieb)_ größere Runde | E77: 928 | F77: 928 | G77: 928 | H77: 928 | I77: 928 | J77: 928 | K77: 928 | L77: 928 | M77: 928 | N77: 928 | O77: 928 | P77: 928 | Q77: 928 | R77: 928 | S77: 928 | T77: - | U77: - | V77: - | W77: 928 | X77: 928 | Y77: 928 | Z77: 928 | AA77: 0 | AB77: 928 | AC77: 928 | AD77: 0 | AE77: 0 | AF77: 0 | AG77: 958 | AH77: 958 | AI77: 958 | AJ77: 958 | AK77: 958 | AL77: 958 | AM77: 958 | AN77: 958 | AO77: 0 | AP77: 0 | AQ77: 958 | AR77: 958 | AS77: 0 | AV77: 958 | AW77: 958 | AX77: 958 | AY77: 958 | AZ77: 0 | BA77: 0 | BB77: 958
A78: 2018-05-08 | B78: Dienstag | D78: Zugfahrt Norddeutsche-Schleife 1 Woche (2 Schichtbetrieb)_ größere Runde | E78: 928 | F78: 928 | G78: 928 | H78: 928 | I78: 928 | J78: 928 | K78: 928 | L78: 928 | M78: 928 | N78: 928 | O78: 928 | P78: 928 | Q78: 928 | R78: 928 | S78: 928 | T78: - | U78: - | V78: - | W78: 928 | X78: 928 | Y78: 928 | Z78: 928 | AA78: 0 | AB78: 928 | AC78: 928 | AD78: 0 | AE78: 0 | AF78: 0 | AG78: 958 | AH78: 958 | AI78: 958 | AJ78: 958 | AK78: 958 | AL78: 958 | AM78: 958 | AN78: 958 | AO78: 0 | AP78: 0 | AQ78: 958 | AR78: 958 | AS78: 0 | AV78: 958 | AW78: 958 | AX78: 958 | AY78: 958 | AZ78: 0 | BA78: 0 | BB78: 958
A79: 2018-05-09 | B79: Mittwoch | C79: Nur 1 Schicht | D79: Zugfahrt Norddeutsche-Schleife 1 Woche (2 Schichtbetrieb)_ größere Runde | E79: 928 | F79: 928 | G79: 928 | H79: 928 | I79: 928 | J79: 928 | K79: 928 | L79: 928 | M79: 928 | N79: 928 | O79: 928 | P79: 928 | Q79: 928 | R79: 928 | S79: 928 | T79: - | U79: - | V79: - | W79: 928 | X79: 928 | Y79: 928 | Z79: 928 | AA79: 0 | AB79: 928 | AC79: 928 | AD79: 0 | AE79: 0 | AF79: 0 | AG79: 553 | AH79: 553 | AI79: 553 | AJ79: 553 | AK79: 553 | AL79: 553 | AM79: 553 | AN79: 553 | AO79: 0 | AP79: 0 | AQ79: 553 | AR79: 553 | AS79: 0 | AV79: 553 | AW79: 553 | AX79: 553 | AY79: 553 | AZ79: 0 | BA79: 0 | BB79: 553
A80: 2018-05-10 | B80: Donnerstag | C80: Christi Himmelfahrt | D80: Zugfahrt Norddeutsche-Schleife 1 Woche_ größere Runde | E80: 464 | F80: 464 | G80: 464 | H80: 464 | I80: 464 | J80: 464 | K80: 464 | L80: 464 | M80: 464 | N80: 464 | O80: 464 | P80: 464 | Q80: 464 | R80: 464 | S80: 464 | T80: - | U80: - | V80: - | W80: 464 | X80: 464 | Y80: 464 | Z80: 464 | AA80: 0 | AB80: 464 | AC80: 464 | AD80: 0 | AE80: 0 | AF80: 0 | AG80: 553 | AH80: 553 | AI80: 553 | AJ80: 553 | AK80: 553 | AL80: 553 | AM80: 553 | AN80: 553 | AO80: 0 | AP80: 0 | AQ80: 553 | AR80: 553 | AS80: 0 | AV80: 553 | AW80: 553 | AX80: 553 | AY80: 553 | AZ80: 0 | BA80: 0 | BB80: 553
A81: 2018-05-11 | B81: Freitag | C81: Nur 1 Schicht | D81: Zugfahrt Norddeutsche-Schleife 1 Woche (2 Schichtbetrieb)_ größere Runde | E81: 928 | F81: 928 | G81: 928 | H81: 928 | I81: 928 | J81: 928 | K81: 928 | L81: 928 | M81: 928 | N81: 928 | O81: 928 | P81: 928 | Q81: 928 | R81: 928 | S81: 928 | T81: - | U81: - | V81: - | W81: 928 | X81: 928 | Y81: 928 | Z81: 928 | AA81: 0 | AB81: 928 | AC81: 928 | AD81: 0 | AE81: 0 | AF81: 0 | AG81: 553 | AH81: 553 | AI81: 553 | AJ81: 553 | AK81: 553 | AL81: 553 | AM81: 553 | AN81: 553 | AO81: 0 | AP81: 0 | AQ81: 553 | AR81: 553 | AS81: 0 | AV81: 553 | AW81: 553 | AX81: 553 | AY81: 553 | AZ81: 0 | BA81: 0 | BB81: 553
A82: 2018-05-12 | B82: Samstag | C82: Keine Fahrten aufgrund fehlender Tf | D82: Zugfahrt Norddeutsche-Schleife 1 Wochenende_ größere Runde | E82: 464 | F82: 464 | G82: 464 | H82: 464 | I82: 464 | J82: 464 | K82: 464 | L82: 464 | M82: 464 | N82: 464 | O82: 464 | P82: 464 | Q82: 464 | R82: 464 | S82: 464 | T82: - | U82: - | V82: - | W82: 464 | X82: 464 | Y82: 464 | Z82: 464 | AA82: 0 | AB82: 464 | AC82: 464 | AD82: 0 | AE82: 0 | AF82: 0 | AG82: 0 | AH82: 0 | AI82: 0 | AJ82: 0 | AK82: 0 | AL82: 0 | AM82: 0 | AN82: 0 | AO82: 0 | AP82: 0 | AQ82: 0 | AR82: 0 | AS82: 0 | AV82: 0 | AW82: 0 | AX82: 0 | AY82: 0 | AZ82: 0 | BA82: 0 | BB82: 0
A83: 2018-05-13 | B83: Sonntag | D83: Zugfahrt Norddeutsche-Schleife 1 Wochenende_ größere Runde | T83: - | U83: - | V83: - | AA83: 0
A84: 2018-05-14 | B84: Montag | D84: Zugüberführung Minden --> Gastrop/ Rauxel & 1 Schichtbetrieb | E84: 445 | F84: 445 | G84: 445 | H84: 445 | I84: 445 | J84: 445 | K84: 445 | L84: 445 | M84: 445 | N84: 445 | O84: 445 | P84: 445 | Q84: 445 | R84: 445 | S84: 445 | T84: - | U84: - | V84: - | W84: 445 | X84: 445 | Y84: 445 | Z84: 445 | AA84: 0 | AB84: 445 | AC84: 445 | AD84: 327 | AE84: 327 | AF84: 327 | AG84: 327 | AH84: 327 | AI84: 327 | AJ84: 327 | AK84: 327 | AL84: 327 | AM84: 327 | AN84: 327 | AO84: 327 | AP84: 327 | AQ84: 327 | AR84: 327 | AS84: 0 | AV84: 327 | AW84: 327 | AX84: 327 | AY84: 327 | AZ84: 0 | BA84: 327 | BB84: 327
A85: 2018-05-15 | B85: Dienstag | D85: Zugfahrt Westdeutsche-Schleife Woche (2 Schichtbetrieb) | E85: 594 | F85: 594 | G85: 594 | H85: 594 | I85: 594 | J85: 594 | K85: 594 | L85: 594 | M85: 594 | N85: 594 | O85: 594 | P85: 594 | Q85: 594 | R85: 594 | S85: 594 | T85: - | U85: - | V85: - | W85: 594 | X85: 594 | Y85: 594 | Z85: 594 | AA85: 0 | AB85: 594 | AC85: 594 | AD85: 516 | AE85: 516 | AF85: 516 | AG85: 516 | AH85: 516 | AI85: 516 | AJ85: 516 | AK85: 516 | AL85: 516 | AM85: 516 | AN85: 516 | AO85: 516 | AP85: 516 | AQ85: 516 | AR85: 516 | AS85: 0 | AV85: 516 | AW85: 516 | AX85: 516 | AY85: 516 | AZ85: 0 | BA85: 516 | BB85: 516
A86: 2018-05-16 | B86: Mittwoch | D86: Zugfahrt Westdeutsche-Schleife Woche (2 Schichtbetrieb) | E86: 594 | F86: 594 | G86: 594 | H86: 594 | I86: 594 | J86: 594 | K86: 594 | L86: 594 | M86: 594 | N86: 594 | O86: 594 | P86: 594 | Q86: 594 | R86: 594 | S86: 594 | T86: - | U86: - | V86: - | W86: 594 | X86: 594 | Y86: 594 | Z86: 594 | AA86: 0 | AB86: 594 | AC86: 594 | AD86: 761 | AE86: 761 | AF86: 761 | AG86: 761 | AH86: 761 | AI86: 761 | AJ86: 761 | AK86: 761 | AL86: 761 | AM86: 761 | AN86: 761 | AO86: 761 | AP86: 761 | AQ86: 761 | AR86: 761 | AS86: 0 | AV86: 761 | AW86: 761 | AX86: 761 | AY86: 761 | AZ86: 0 | BA86: 761 | BB86: 761
A87: 2018-05-17 | B87: Donnerstag | D87: Zugfahrt Westdeutsche-Schleife Woche (2 Schichtbetrieb) | E87: 594 | F87: 594 | G87: 594 | H87: 594 | I87: 594 | J87: 594 | K87: 594 | L87: 594 | M87: 594 | N87: 594 | O87: 594 | P87: 594 | Q87: 594 | R87: 594 | S87: 594 | T87: - | U87: - | V87: - | W87: 594 | X87: 594 | Y87: 594 | Z87: 594 | AA87: 0 | AB87: 594 | AC87: 594 | AD87: 890 | AE87: 890 | AF87: 890 | AG87: 890 | AH87: 890 | AI87: 890 | AJ87: 890 | AK87: 890 | AL87: 890 | AM87: 890 | AN87: 890 | AO87: 890 | AP87: 890 | AQ87: 890 | AR87: 890 | AS87: 0 | AV87: 890 | AW87: 890 | AX87: 890 | AY87: 890 | AZ87: 0 | BA87: 890 | BB87: 890
A88: 2018-05-18 | B88: Freitag | D88: Zugüberführung Gastrop/ Rauxel --> Minden & 1 Schichtbetrieb | E88: 445 | F88: 445 | G88: 445 | H88: 445 | I88: 445 | J88: 445 | K88: 445 | L88: 445 | M88: 445 | N88: 445 | O88: 445 | P88: 445 | Q88: 445 | R88: 445 | S88: 445 | T88: - | U88: - | V88: - | W88: 445 | X88: 445 | Y88: 445 | Z88: 445 | AA88: 0 | AB88: 445 | AC88: 445 | AD88: 457 | AE88: 457 | AF88: 457 | AG88: 457 | AH88: 457 | AI88: 457 | AJ88: 457 | AK88: 457 | AL88: 457 | AM88: 457 | AN88: 457 | AO88: 457 | AP88: 457 | AQ88: 457 | AR88: 457 | AS88: 0 | AV88: 457 | AW88: 457 | AX88: 457 | AY88: 457 | AZ88: 0 | BA88: 457 | BB88: 457
A89: 2018-05-19 | B89: Samstag | T89: - | U89: - | V89: - | AA89: 0
A90: 2018-05-20 | B90: Sonntag | C90: Pfingstsonntag | T90: - | U90: - | V90: - | AA90: 0
A91: 2018-05-21 | B91: Montag | C91: Pfingstmontag | T91: - | U91: - | V91: - | AA91: 0
A92: 2018-05-22 | B92: Dienstag | D92: Zugüberführung Minden --> Nürnberg & 1 Schichtbetrieb | E92: 526 | F92: 526 | G92: 526 | H92: 526 | I92: 526 | J92: 526 | K92: 526 | L92: 526 | M92: 526 | N92: 526 | O92: 526 | P92: 526 | Q92: 526 | R92: 526 | S92: 526 | T92: - | U92: - | V92: - | W92: 526 | X92: 526 | Y92: 526 | Z92: 526 | AA92: 0 | AB92: 526 | AC92: 526 | AD92: 925 | AE92: 925 | AF92: 925 | AG92: 925 | AH92: 925 | AI92: 925 | AJ92: 925 | AK92: 925 | AL92: 925 | AM92: 925 | AN92: 925 | AO92: 925 | AP92: 925 | AQ92: 925 | AR92: 925 | AS92: 0 | AV92: 925 | AW92: 925 | AX92: 925 | AY92: 925 | AZ92: 0 | BA92: 925 | BB92: 925
A93: 2018-05-23 | B93: Mittwoch | C93: Lärmmessung - Donauwörth- Fa. Prose; Ausrangieren des Wagens 25 80 4382 001-2 | D93: Zugfahrt Süddeutsche-Schleife Woche (2 Schichtbetrieb) | E93: 836 | F93: 836 | G93: 836 | H93: 836 | I93: 836 | J93: 836 | K93: 836 | L93: 836 | M93: 836 | N93: 836 | O93: 836 | P93: 836 | Q93: 836 | R93: 836 | S93: 836 | T93: - | U93: - | V93: - | W93: 836 | X93: 836 | Y93: 836 | Z93: 836 | AA93: 0 | AB93: 836 | AC93: 836 | AD93: 9 | AE93: 9 | AF93: 9 | AG93: 9 | AH93: 9 | AI93: 9 | AJ93: 9 | AK93: 9 | AL93: 9 | AM93: 9 | AN93: 9 | AO93: 9 | AP93: 9 | AQ93: 9 | AR93: 9 | AS93: 0 | AV93: 9 | AW93: 9 | AX93: 9 | AY93: 9 | AZ93: 0 | BA93: 9 | BB93: 9
A94: 2018-05-24 | B94: Donnerstag | C94: Lärmmessung - Donauwörth- Fa. Prose | D94: Zugfahrt Süddeutsche-Schleife Woche (2 Schichtbetrieb) | E94: 860 | F94: 860 | G94: 860 | H94: 860 | I94: 860 | J94: 860 | K94: 860 | L94: 860 | M94: 860 | N94: 860 | O94: 860 | P94: 860 | Q94: 860 | R94: 860 | S94: 860 | T94: - | U94: - | V94: - | W94: 860 | X94: 860 | Y94: 860 | Z94: 860 | AA94: 0 | AB94: 860 | AC94: 860 | AD94: 860 | AE94: 860 | AF94: 860 | AG94: 860 | AH94: 860 | AI94: 860 | AJ94: 860 | AK94: 860 | AL94: 860 | AM94: 860 | AN94: 860 | AO94: 860 | AP94: 860 | AQ94: 0 | AR94: 860 | AS94: 0 | AV94: 860 | AW94: 860 | AX94: 860 | AY94: 860 | AZ94: 0 | BA94: 860 | BB94: 860
A95: 2018-05-25 | B95: Freitag | C95: Lärmmessung - Donauwörth- Fa. Prose | D95: Zugüberführung Nürnberg --> Minden & 1 Schichtbetrieb | E95: 1008 | F95: 1008 | G95: 1008 | H95: 1008 | I95: 1008 | J95: 1008 | K95: 1008 | L95: 1008 | M95: 1008 | N95: 1008 | O95: 1008 | P95: 1008 | Q95: 1008 | R95: 1008 | S95: 1008 | T95: - | U95: - | V95: - | W95: 1008 | X95: 1008 | Y95: 1008 | Z95: 1008 | AA95: 0 | AB95: 1008 | AC95: 1008 | AD95: 1008 | AE95: 1008 | AF95: 1008 | AG95: 1008 | AH95: 1008 | AI95: 1008 | AJ95: 1008 | AK95: 1008 | AL95: 1008 | AM95: 1008 | AN95: 1008 | AO95: 1008 | AP95: 1008 | AQ95: 0 | AR95: 1008 | AS95: 0 | AV95: 1008 | AW95: 1008 | AX95: 1008 | AY95: 1008 | AZ95: 0 | BA95: 1008 | BB95: 1008
A96: 2018-05-26 | B96: Samstag | T96: - | U96: - | V96: - | AA96: 0
A97: 2018-05-27 | B97: Sonntag | T97: - | U97: - | V97: - | AA97: 0
A98: 2018-05-28 | B98: Montag | D98: Zugüberführung Minden --> Dresden Friedrichstadt & 1 Schichtbetrieb | E98: 720 | F98: 720 | G98: 720 | H98: 720 | I98: 720 | J98: 720 | K98: 720 | L98: 720 | M98: 720 | N98: 720 | O98: 720 | P98: 720 | Q98: 720 | R98: 720 | S98: 720 | T98: - | U98: - | V98: - | W98: 720 | X98: 720 | Y98: 720 | Z98: 720 | AA98: 0 | AB98: 720 | AC98: 720 | AD98: 662 | AE98: 662 | AF98: 662 | AG98: 662 | AH98: 662 | AI98: 662 | AJ98: 662 | AK98: 662 | AL98: 662 | AM98: 662 | AN98: 662 | AO98: 662 | AP98: 662 | AQ98: 0 | AR98: 662 | AS98: 0 | AV98: 662 | AW98: 662 | AX98: 662 | AY98: 662 | AZ98: 0 | BA98: 662 | BB98: 662
A99: 2018-05-29 | B99: Dienstag | D99: Zugfahrt Ostdeutsche-Schleife Woche (2 Schichtbetrieb) | E99: 706 | F99: 706 | G99: 706 | H99: 706 | I99: 706 | J99: 706 | K99: 706 | L99: 706 | M99: 706 | N99: 706 | O99: 706 | P99: 706 | Q99: 706 | R99: 706 | S99: 706 | T99: - | U99: - | V99: - | W99: 706 | X99: 706 | Y99: 706 | Z99: 706 | AA99: 0 | AB99: 706 | AC99: 706 | AD99: 706 | AE99: 706 | AF99: 706 | AG99: 706 | AH99: 706 | AI99: 706 | AJ99: 706 | AK99: 706 | AL99: 706 | AM99: 706 | AN99: 706 | AO99: 706 | AP99: 706 | AQ99: 0 | AR99: 706 | AS99: 0 | AV99: 706 | AW99: 706 | AX99: 706 | AY99: 706 | AZ99: 0 | BA99: 706 | BB99: 706
A100: 2018-05-30 | B100: Mittwoch | D100: Zugfahrt Ostdeutsche-Schleife Woche (2 Schichtbetrieb) | E100: 706 | F100: 706 | G100: 706 | H100: 706 | I100: 706 | J100: 706 | K100: 706 | L100: 706 | M100: 706 | N100: 706 | O100: 706 | P100: 706 | Q100: 706 | R100: 706 | S100: 706 | T100: - | U100: - | V100: - | W100: 706 | X100: 706 | Y100: 706 | Z100: 706 | AA100: 0 | AB100: 706 | AC100: 706 | AD100: 706 | AE100: 706 | AF100: 706 | AG100: 706 | AH100: 706 | AI100: 706 | AJ100: 706 | AK100: 706 | AL100: 706 | AM100: 706 | AN100: 706 | AO100: 706 | AP100: 706 | AQ100: 0 | AR100: 706 | AS100: 0 | AV100: 706 | AW100: 706 | AX100: 706 | AY100: 706 | AZ100: 0 | BA100: 706 | BB100: 706
A101: 2018-05-31 | B101: Donnerstag | D101: Zugfahrt Ostdeutsche-Schleife Woche (2 Schichtbetrieb) | E101: 706 | F101: 706 | G101: 706 | H101: 706 | I101: 706 | J101: 706 | K101: 706 | L101: 706 | M101: 706 | N101: 706 | O101: 706 | P101: 706 | Q101: 706 | R101: 706 | S101: 706 | T101: - | U101: - | V101: - | W101: 706 | X101: 706 | Y101: 706 | Z101: 706 | AA101: 0 | AB101: 706 | AC101: 706 | AD101: 706 | AE101: 706 | AF101: 706 | AG101: 706 | AH101: 706 | AI101: 706 | AJ101: 706 | AK101: 706 | AL101: 706 | AM101: 706 | AN101: 706 | AO101: 706 | AP101: 706 | AQ101: 0 | AR101: 706 | AS101: 0 | AV101: 706 | AW101: 706 | AX101: 706 | AY101: 706 | AZ101: 0 | BA101: 706 | BB101: 706
A102: 2018-06-01 | B102: Freitag | D102: Zugüberführung Dresden Friedrichstadt --> Minden & 1 Schichtbetrieb | E102: 491 | F102: 491 | G102: 491 | H102: 491 | I102: 491 | J102: 491 | K102: 491 | L102: 491 | M102: 491 | N102: 491 | O102: 491 | P102: 491 | Q102: 491 | R102: 491 | S102: 491 | T102: - | U102: - | V102: - | W102: 491 | X102: 491 | Y102: 491 | Z102: 491 | AA102: 0 | AB102: 491 | AC102: 491 | AD102: 491 | AE102: 491 | AF102: 491 | AG102: 491 | AH102: 491 | AI102: 491 | AJ102: 491 | AK102: 491 | AL102: 491 | AM102: 491 | AN102: 491 | AO102: 491 | AP102: 491 | AQ102: 0 | AR102: 491 | AS102: 0 | AV102: 491 | AW102: 491 | AX102: 491 | AY102: 491 | AZ102: 0 | BA102: 491 | BB102: 491
A103: 2018-06-02 | B103: Samstag | T103: - | U103: - | V103: - | AA103: 0
A104: 2018-06-03 | B104: Sonntag | T104: - | U104: - | V104: - | AA104: 0
A105: 2018-06-04 | B105: Montag | D105: Verschleißmessung groß Minden | E105: - | F105: - | G105: - | H105: - | I105: - | J105: - | K105: - | L105: - | M105: - | N105: - | O105: - | P105: - | Q105: - | R105: - | S105: - | T105: - | U105: - | V105: - | W105: - | X105: - | Y105: - | Z105: - | AA105: - | AB105: - | AC105: -
A106: 2018-06-05 | B106: Dienstag | D106: Verschleißmessung groß Minden | E106: 464 | F106: 464 | G106: 464 | H106: 464 | I106: 464 | J106: 464 | K106: 464 | L106: 464 | M106: 464 | N106: 464 | O106: 464 | T106: - | U106: - | V106: - | W106: - | X106: - | Y106: - | Z106: - | AA106: - | AB106: - | AC106: - | AO106: 464 | AP106: 464 | AR106: 464 | AV106: 464 | AW106: 464 | AX106: 464 | BA106: 464 | BB106: 464
A107: 2018-06-06 | B107: Mittwoch | D107: Verschleißmessung groß Minden | E107: 928 | F107: 928 | G107: 928 | H107: 928 | I107: 928 | J107: 928 | K107: 928 | L107: 928 | M107: 928 | N107: 928 | O107: 928 | P107: - | Q107: - | R107: - | S107: - | T107: - | U107: - | V107: - | W107: - | X107: - | Y107: - | Z107: - | AA107: - | AB107: - | AC107: - | AD107: 464 | AE107: 464 | AF107: 464 | AG107: 464 | AH107: 464 | AI107: 464 | AJ107: 464 | AK107: 464 | AL107: 464 | AM107: 464 | AN107: 464
A108: 2018-06-07 | B108: Donnerstag | D108: Verschleißmessung groß Minden | E108: - | F108: - | G108: - | H108: - | I108: - | J108: - | K108: - | L108: - | M108: - | N108: - | O108: - | P108: 464 | Q108: 464 | R108: 0 | S108: 464 | T108: - | U108: - | V108: - | W108: 464 | X108: 464 | Y108: 464 | Z108: 464 | AA108: 0 | AB108: 464 | AC108: 464
A109: 2018-06-08 | B109: Freitag | D109: Verschleißmessung groß Minden | E109: - | F109: - | G109: - | H109: - | I109: - | J109: - | K109: - | L109: - | M109: - | N109: - | O109: - | P109: 464 | Q109: 464 | R109: 0 | S109: 464 | T109: - | U109: - | V109: - | W109: 464 | X109: 464 | Y109: 464 | Z109: 464 | AA109: 0 | AB109: 464 | AC109: 464
A110: 2018-06-09 | B110: Samstag | T110: - | U110: - | V110: -
A111: 2018-06-10 | B111: Sonntag | D111: Zugfahrt Norddeutsche-Schleife 1 Wochenende_ größere Runde | E111: 464 | F111: 464 | G111: 464 | H111: 464 | I111: 464 | J111: 464 | K111: 464 | L111: 464 | M111: 464 | N111: 464 | O111: 464 | P111: 464 | Q111: 464 | R111: 464 | S111: 464 | T111: - | U111: - | V111: - | W111: 464 | X111: 464 | Y111: 464 | Z111: 464 | AA111: 464 | AB111: 464 | AC111: 464 | AD111: 464 | AE111: 464 | AF111: 464 | AG111: 464 | AH111: 464 | AI111: 464 | AJ111: 464 | AK111: 464 | AO111: 464 | AP111: 464 | AR111: 464 | AV111: 464 | AW111: 464 | AX111: 464 | AY111: 464 | AZ111: 464 | BA111: 464 | BB111: 464
A112: 2018-06-11 | B112: Montag | D112: Zugüberführung Minden --> Gastrop/ Rauxel & 1 Schichtbetrieb | E112: 327 | F112: 327 | G112: 327 | H112: 327 | I112: 327 | J112: 327 | K112: 327 | L112: 327 | M112: 327 | N112: 327 | O112: 327 | P112: 327 | Q112: 327 | R112: 327 | S112: 327 | T112: - | U112: - | V112: - | W112: 327 | X112: 327 | Y112: 327 | Z112: 327 | AA112: 327 | AB112: 327 | AC112: 327 | AD112: 593 | AE112: 593 | AF112: 593 | AG112: 593 | AH112: 593 | AI112: 593 | AJ112: 593 | AK112: 593 | AL112: 0 | AM112: 0 | AN112: 0 | AO112: 593 | AP112: 593 | AQ112: 0 | AR112: 593 | AS112: 0 | AV112: 593 | AW112: 593 | AX112: 593 | AY112: 593 | AZ112: 593 | BA112: 593 | BB112: 593
A113: 2018-06-12 | B113: Dienstag | D113: Zugfahrt Westdeutsche-Schleife Woche (2 Schichtbetrieb) | E113: 516 | F113: 516 | G113: 516 | H113: 516 | I113: 516 | J113: 516 | K113: 516 | L113: 516 | M113: 516 | N113: 516 | O113: 516 | P113: 516 | Q113: 516 | R113: 516 | S113: 516 | T113: - | U113: - | V113: - | W113: 516 | X113: 516 | Y113: 516 | Z113: 516 | AA113: 516 | AB113: 516 | AC113: 516 | AD113: 557 | AE113: 557 | AF113: 557 | AG113: 557 | AH113: 557 | AI113: 557 | AJ113: 557 | AK113: 557 | AL113: 0 | AM113: 0 | AN113: 0 | AO113: 557 | AP113: 557 | AQ113: 0 | AR113: 557 | AS113: 0 | AV113: 557 | AW113: 557 | AX113: 557 | AY113: 557 | AZ113: 557 | BA113: 557 | BB113: 557
A114: 2018-06-13 | B114: Mittwoch | D114: Zugfahrt Westdeutsche-Schleife Woche (2 Schichtbetrieb) | E114: 516 | F114: 516 | G114: 516 | H114: 516 | I114: 516 | J114: 516 | K114: 516 | L114: 516 | M114: 516 | N114: 516 | O114: 516 | P114: 516 | Q114: 516 | R114: 516 | S114: 516 | T114: - | U114: - | V114: - | W114: 516 | X114: 516 | Y114: 516 | Z114: 516 | AA114: 516 | AB114: 516 | AC114: 516 | AD114: 557 | AE114: 557 | AF114: 557 | AG114: 557 | AH114: 557 | AI114: 557 | AJ114: 557 | AK114: 557 | AL114: 0 | AM114: 0 | AN114: 0 | AO114: 557 | AP114: 557 | AQ114: 0 | AR114: 557 | AS114: 0 | AV114: 557 | AW114: 557 | AX114: 557 | AY114: 557 | AZ114: 557 | BA114: 557 | BB114: 557
A115: 2018-06-14 | B115: Donnerstag | D115: Zugfahrt Westdeutsche-Schleife Woche (2 Schichtbetrieb) | E115: 516 | F115: 516 | G115: 516 | H115: 516 | I115: 516 | J115: 516 | K115: 516 | L115: 516 | M115: 516 | N115: 516 | O115: 516 | P115: 516 | Q115: 516 | R115: 516 | S115: 516 | T115: - | U115: - | V115: - | W115: 516 | X115: 516 | Y115: 516 | Z115: 516 | AA115: 516 | AB115: 516 | AC115: 516 | AD115: 557 | AE115: 557 | AF115: 557 | AG115: 557 | AH115: 557 | AI115: 557 | AJ115: 557 | AK115: 557 | AL115: 0 | AM115: 0 | AN115: 0 | AO115: 557 | AP115: 557 | AQ115: 0 | AR115: 557 | AS115: 0 | AV115: 557 | AW115: 557 | AX115: 557 | AY115: 557 | AZ115: 557 | BA115: 557 | BB115: 557
A116: 2018-06-15 | B116: Freitag | D116: Zugüberführung Gastrop/ Rauxel --> Minden & 1 Schichtbetrieb | E116: 349 | F116: 349 | G116: 349 | H116: 349 | I116: 349 | J116: 349 | K116: 349 | L116: 349 | M116: 349 | N116: 349 | O116: 349 | P116: 349 | Q116: 349 | R116: 349 | S116: 349 | T116: - | U116: - | V116: - | W116: 349 | X116: 349 | Y116: 349 | Z116: 349 | AA116: 349 | AB116: 349 | AC116: 349 | AD116: 354 | AE116: 354 | AF116: 354 | AG116: 354 | AH116: 354 | AI116: 354 | AJ116: 354 | AK116: 354 | AL116: 0 | AM116: 0 | AN116: 0 | AO116: 354 | AP116: 354 | AQ116: 0 | AR116: 354 | AS116: 0 | AV116: 354 | AW116: 354 | AX116: 354 | AY116: 354 | AZ116: 354 | BA116: 354 | BB116: 354
A117: 2018-06-16 | B117: Samstag | T117: - | U117: - | V117: -
A118: 2018-06-17 | B118: Sonntag | T118: - | U118: - | V118: -
A119: 2018-06-18 | B119: Montag | D119: Zugüberführung Minden --> Köln & 1 Schichtbetrieb | E119: 458 | F119: 458 | G119: 458 | H119: 458 | I119: 458 | J119: 458 | K119: 458 | L119: 458 | M119: 458 | N119: 458 | O119: 458 | P119: 458 | Q119: 458 | R119: 458 | S119: 458 | T119: - | U119: - | V119: - | W119: 458 | X119: 458 | Y119: 458 | Z119: 458 | AA119: 458 | AB119: 458 | AC119: 458 | AD119: 520 | AE119: 520 | AF119: 520 | AG119: 520 | AH119: 520 | AI119: 520 | AJ119: 520 | AK119: 520 | AL119: 520 | AM119: 520 | AN119: 520 | AO119: 520 | AP119: 520 | AR119: 520 | AV119: 520 | AW119: 520 | AX119: 520 | AY119: 520 | AZ119: 520 | BA119: 520 | BB119: 520
A120: 2018-06-19 | B120: Dienstag | D120: Zugfahrt Rheintalstrecke Woche (2 Schichtbetrieb) | E120: 736 | F120: 736 | G120: 736 | H120: 736 | I120: 736 | J120: 736 | K120: 736 | L120: 736 | M120: 736 | N120: 736 | O120: 736 | P120: 736 | Q120: 736 | R120: 736 | S120: 736 | T120: - | U120: - | V120: - | W120: 736 | X120: 736 | Y120: 736 | Z120: 736 | AA120: 736 | AB120: 736 | AC120: 736 | AD120: 724 | AE120: 724 | AF120: 724 | AG120: 724 | AH120: 724 | AI120: 724 | AJ120: 724 | AK120: 724 | AL120: 724 | AM120: 724 | AN120: 724 | AO120: 724 | AP120: 724 | AR120: 724 | AV120: 724 | AW120: 724 | AX120: 724 | AY120: 724 | AZ120: 724 | BA120: 724 | BB120: 724
A121: 2018-06-20 | B121: Mittwoch | D121: Zugfahrt Rheintalstrecke Woche (2 Schichtbetrieb) | E121: 736 | F121: 736 | G121: 736 | H121: 736 | I121: 736 | J121: 736 | K121: 736 | L121: 736 | M121: 736 | N121: 736 | O121: 736 | P121: 736 | Q121: 736 | R121: 736 | S121: 736 | T121: - | U121: - | V121: - | W121: 736 | X121: 736 | Y121: 736 | Z121: 736 | AA121: 736 | AB121: 736 | AC121: 736 | AD121: 724 | AE121: 724 | AF121: 724 | AG121: 724 | AH121: 724 | AI121: 724 | AJ121: 724 | AK121: 724 | AL121: 724 | AM121: 724 | AN121: 724 | AO121: 724 | AP121: 724 | AR121: 724 | AV121: 724 | AW121: 724 | AX121: 724 | AY121: 724 | AZ121: 724 | BA121: 724 | BB121: 724
A122: 2018-06-21 | B122: Donnerstag | D122: Zugfahrt Rheintalstrecke Woche (2 Schichtbetrieb) | E122: 736 | F122: 736 | G122: 736 | H122: 736 | I122: 736 | J122: 736 | K122: 736 | L122: 736 | M122: 736 | N122: 736 | O122: 736 | P122: 736 | Q122: 736 | R122: 736 | S122: 736 | T122: - | U122: - | V122: - | W122: 736 | X122: 736 | Y122: 736 | Z122: 736 | AA122: 736 | AB122: 736 | AC122: 736 | AD122: 724 | AE122: 724 | AF122: 724 | AG122: 724 | AH122: 724 | AI122: 724 | AJ122: 724 | AK122: 724 | AL122: 724 | AM122: 724 | AN122: 724 | AO122: 724 | AP122: 724 | AR122: 724 | AV122: 724 | AW122: 724 | AX122: 724 | AY122: 724 | AZ122: 724 | BA122: 724 | BB122: 724
A123: 2018-06-22 | B123: Freitag | D123: Zugüberführung Köln --> Lehrte & 1 Schichtbetrieb | E123: 457 | F123: 457 | G123: 457 | H123: 457 | I123: 457 | J123: 457 | K123: 457 | L123: 457 | M123: 457 | N123: 457 | O123: 457 | P123: 457 | Q123: 457 | R123: 457 | S123: 457 | T123: - | U123: - | V123: - | W123: 457 | X123: 457 | Y123: 457 | Z123: 457 | AA123: 457 | AB123: 457 | AC123: 457 | AD123: 471 | AE123: 471 | AF123: 471 | AG123: 471 | AH123: 471 | AI123: 471 | AJ123: 471 | AK123: 471 | AL123: 471 | AM123: 471 | AN123: 471 | AO123: 471 | AP123: 471 | AR123: 471 | AV123: 471 | AW123: 471 | AX123: 471 | AY123: 471 | AZ123: 471 | BA123: 471 | BB123: 471
A124: 2018-06-23 | B124: Samstag | C124: geänderte Route wg. Baustelle | D124: Zugfahrt Norddeutsche-Schleife 1 Wochenende_ größere Runde | E124: 464 | F124: 464 | G124: 464 | H124: 464 | I124: 464 | J124: 464 | K124: 464 | L124: 464 | M124: 464 | N124: 464 | O124: 464 | P124: 464 | Q124: 464 | R124: 464 | S124: 464 | T124: - | U124: - | V124: - | W124: 464 | X124: 464 | Y124: 464 | Z124: 464 | AA124: 464 | AB124: 464 | AC124: 464 | AD124: 284 | AE124: 284 | AF124: 284 | AG124: 284 | AH124: 284 | AI124: 284 | AJ124: 284 | AK124: 284 | AL124: 284 | AM124: 284 | AN124: 284 | AO124: 284 | AP124: 284 | AR124: 284 | AV124: 284 | AW124: 284 | AX124: 284 | AY124: 284 | AZ124: 284 | BA124: 284 | BB124: 284
A125: 2018-06-24 | B125: Sonntag | C125: geänderte Route wg. Baustelle | D125: Zugfahrt Norddeutsche-Schleife 1 Wochenende_ größere Runde | E125: 464 | F125: 464 | G125: 464 | H125: 464 | I125: 464 | J125: 464 | K125: 464 | L125: 464 | M125: 464 | N125: 464 | O125: 464 | P125: 464 | Q125: 464 | R125: 464 | S125: 464 | T125: - | U125: - | V125: - | W125: 464 | X125: 464 | Y125: 464 | Z125: 464 | AA125: 464 | AB125: 464 | AC125: 464 | AD125: 284 | AE125: 284 | AF125: 284 | AG125: 284 | AH125: 284 | AI125: 284 | AJ125: 284 | AK125: 284 | AL125: 284 | AM125: 284 | AN125: 284 | AO125: 284 | AP125: 284 | AR125: 284 | AV125: 284 | AW125: 284 | AX125: 284 | AY125: 284 | AZ125: 284 | BA125: 284 | BB125: 284
A126: 2018-06-25 | B126: Montag | D126: Zugüberführung Lehrte --> Regensburg & 1 Schichtbetrieb | E126: 925 | F126: 925 | G126: 925 | H126: 925 | I126: 925 | J126: 925 | K126: 925 | L126: 925 | M126: 925 | N126: 925 | O126: 925 | P126: 925 | Q126: 925 | R126: 925 | S126: 925 | T126: - | U126: - | V126: - | W126: 925 | X126: 925 | Y126: 925 | Z126: 925 | AA126: 925 | AB126: 925 | AC126: 925 | AD126: 993 | AE126: 993 | AF126: 993 | AG126: 993 | AH126: 993 | AI126: 993 | AJ126: 993 | AK126: 993 | AL126: 993 | AM126: 993 | AN126: 993 | AO126: 993 | AP126: 993 | AR126: 993 | AV126: 993 | AW126: 993 | AX126: 993 | AY126: 993 | AZ126: 993 | BA126: 993 | BB126: 993
A127: 2018-06-26 | B127: Dienstag | C127: Lärmmessung - Donauwörth- Fa. Prose | D127: Zugfahrt Süddeutsche-Schleife Woche (2 Schichtbetrieb) | E127: 860 | F127: 860 | G127: 860 | H127: 860 | I127: 860 | J127: 860 | K127: 860 | L127: 860 | M127: 860 | N127: 860 | O127: 860 | P127: 860 | Q127: 860 | R127: 860 | S127: 860 | T127: - | U127: - | V127: - | W127: 860 | X127: 860 | Y127: 860 | Z127: 860 | AA127: 860 | AB127: 860 | AC127: 860 | AD127: 844 | AE127: 844 | AF127: 844 | AG127: 844 | AH127: 844 | AI127: 844 | AJ127: 844 | AK127: 844 | AL127: 844 | AM127: 844 | AN127: 844 | AO127: 844 | AP127: 844 | AR127: 844 | AV127: 844 | AW127: 844 | AX127: 844 | AY127: 844 | AZ127: 844 | BA127: 844 | BB127: 844
A128: 2018-06-27 | B128: Mittwoch | C128: Lärmmessung - Donauwörth- Fa. Prose | D128: Zugfahrt Süddeutsche-Schleife Woche (2 Schichtbetrieb) | E128: 860 | F128: 860 | G128: 860 | H128: 860 | I128: 860 | J128: 860 | K128: 860 | L128: 860 | M128: 860 | N128: 860 | O128: 860 | P128: 860 | Q128: 860 | R128: 860 | S128: 860 | T128: - | U128: - | V128: - | W128: 860 | X128: 860 | Y128: 860 | Z128: 860 | AA128: 860 | AB128: 860 | AC128: 860 | AD128: 844 | AE128: 844 | AF128: 844 | AG128: 844 | AH128: 844 | AI128: 844 | AJ128: 844 | AK128: 844 | AL128: 844 | AM128: 844 | AN128: 844 | AO128: 844 | AP128: 844 | AR128: 844 | AV128: 844 | AW128: 844 | AX128: 844 | AY128: 844 | AZ128: 844 | BA128: 844 | BB128: 844
A129: 2018-06-28 | B129: Donnerstag | C129: Lärmmessung - Donauwörth- Fa. Prose | D129: Zugfahrt Süddeutsche-Schleife Woche (2 Schichtbetrieb) | E129: 860 | F129: 860 | G129: 860 | H129: 860 | I129: 860 | J129: 860 | K129: 860 | L129: 860 | M129: 860 | N129: 860 | O129: 860 | P129: 860 | Q129: 860 | R129: 860 | S129: 860 | T129: - | U129: - | V129: - | W129: 860 | X129: 860 | Y129: 860 | Z129: 860 | AA129: 860 | AB129: 860 | AC129: 860 | AD129: 844 | AE129: 844 | AF129: 844 | AG129: 844 | AH129: 844 | AI129: 844 | AJ129: 844 | AK129: 844 | AL129: 844 | AM129: 844 | AN129: 844 | AO129: 844 | AP129: 844 | AR129: 844 | AV129: 844 | AW129: 844 | AX129: 844 | AY129: 844 | AZ129: 844 | BA129: 844 | BB129: 844
A130: 2018-06-29 | B130: Freitag | D130: Zugüberführung Regensburg --> Minden & 1 Schichtbetrieb | E130: 578 | F130: 578 | G130: 578 | H130: 578 | I130: 578 | J130: 578 | K130: 578 | L130: 578 | M130: 578 | N130: 578 | O130: 578 | P130: 578 | Q130: 578 | R130: 578 | S130: 578 | T130: - | U130: - | V130: - | W130: 578 | X130: 578 | Y130: 578 | Z130: 578 | AA130: 578 | AB130: 578 | AC130: 578 | AD130: 823 | AE130: 823 | AF130: 823 | AG130: 823 | AH130: 823 | AI130: 823 | AJ130: 823 | AK130: 823 | AL130: 823 | AM130: 823 | AN130: 823 | AO130: 823 | AP130: 823 | AR130: 823 | AV130: 823 | AW130: 823 | AX130: 823 | AY130: 823 | AZ130: 823 | BA130: 823 | BB130: 823
A131: 2018-06-30 | B131: Samstag | C131: geänderte Route wg. Baustelle | D131: Zugfahrt Norddeutsche-Schleife 1 Wochenende_ größere Runde | E131: 464 | F131: 464 | G131: 464 | H131: 464 | I131: 464 | J131: 464 | K131: 464 | L131: 464 | M131: 464 | N131: 464 | O131: 464 | P131: 464 | Q131: 464 | R131: 464 | S131: 464 | T131: - | U131: - | V131: - | W131: 464 | X131: 464 | Y131: 464 | Z131: 464 | AA131: 464 | AB131: 464 | AC131: 464 | AD131: 413 | AE131: 413 | AF131: 413 | AG131: 413 | AH131: 413 | AI131: 413 | AJ131: 413 | AK131: 413 | AL131: 413 | AM131: 413 | AN131: 413 | AO131: 413 | AP131: 413 | AR131: 413 | AV131: 413 | AW131: 413 | AX131: 413 | AY131: 413 | AZ131: 413 | BA131: 413 | BB131: 413
A132: 2018-07-01 | B132: Sonntag | T132: - | U132: - | V132: -
A133: 2018-07-02 | B133: Montag | D133: Zugüberführung Minden --> Dresden Friedrichstadt & 1 Schichtbetrieb | E133: 720 | F133: 720 | G133: 720 | H133: 720 | I133: 720 | J133: 720 | K133: 720 | L133: 720 | M133: 720 | N133: 720 | O133: 720 | P133: 720 | Q133: 720 | R133: 720 | S133: 720 | T133: - | U133: - | V133: - | W133: 720 | X133: 720 | Y133: 720 | Z133: 720 | AA133: 720 | AB133: 720 | AC133: 720 | AD133: 686 | AE133: 686 | AF133: 686 | AG133: 686 | AH133: 686 | AI133: 686 | AJ133: 686 | AK133: 686 | AL133: 686 | AM133: 686 | AN133: 686 | AO133: 686 | AP133: 686 | AR133: 686 | AV133: 686 | AW133: 686 | AX133: 686 | AY133: 686 | AZ133: 686 | BA133: 686 | BB133: 686
A134: 2018-07-03 | B134: Dienstag | D134: Zugfahrt Ostdeutsche-Schleife Wochenende (2 Schichtbetrieb) | E134: 706 | F134: 706 | G134: 706 | H134: 706 | I134: 706 | J134: 706 | K134: 706 | L134: 706 | M134: 706 | N134: 706 | O134: 706 | P134: 706 | Q134: 706 | R134: 706 | S134: 706 | T134: - | U134: - | V134: - | W134: 706 | X134: 706 | Y134: 706 | Z134: 706 | AA134: 706 | AB134: 706 | AC134: 706 | AD134: 568 | AE134: 568 | AF134: 568 | AG134: 568 | AH134: 568 | AI134: 568 | AJ134: 568 | AK134: 568 | AL134: 568 | AM134: 568 | AN134: 568 | AO134: 568 | AP134: 568 | AR134: 568 | AV134: 568 | AW134: 568 | AX134: 568 | AY134: 568 | AZ134: 568 | BA134: 568 | BB134: 568
A135: 2018-07-04 | B135: Mittwoch | D135: Zugfahrt Ostdeutsche-Schleife Wochenende (2 Schichtbetrieb) | E135: 706 | F135: 706 | G135: 706 | H135: 706 | I135: 706 | J135: 706 | K135: 706 | L135: 706 | M135: 706 | N135: 706 | O135: 706 | P135: 706 | Q135: 706 | R135: 706 | S135: 706 | T135: - | U135: - | V135: - | W135: 706 | X135: 706 | Y135: 706 | Z135: 706 | AA135: 706 | AB135: 706 | AC135: 706 | AD135: 568 | AE135: 568 | AF135: 568 | AG135: 568 | AH135: 568 | AI135: 568 | AJ135: 568 | AK135: 568 | AL135: 568 | AM135: 568 | AN135: 568 | AO135: 568 | AP135: 568 | AR135: 568 | AV135: 568 | AW135: 568 | AX135: 568 | AY135: 568 | AZ135: 568 | BA135: 568 | BB135: 568
A136: 2018-07-05 | B136: Donnerstag | D136: Zugfahrt Ostdeutsche-Schleife Wochenende (2 Schichtbetrieb) | E136: 706 | F136: 706 | G136: 706 | H136: 706 | I136: 706 | J136: 706 | K136: 706 | L136: 706 | M136: 706 | N136: 706 | O136: 706 | P136: 706 | Q136: 706 | R136: 706 | S136: 706 | T136: - | U136: - | V136: - | W136: 706 | X136: 706 | Y136: 706 | Z136: 706 | AA136: 706 | AB136: 706 | AC136: 706 | AD136: 568 | AE136: 568 | AF136: 568 | AG136: 568 | AH136: 568 | AI136: 568 | AJ136: 568 | AK136: 568 | AL136: 568 | AM136: 568 | AN136: 568 | AO136: 568 | AP136: 568 | AR136: 568 | AV136: 568 | AW136: 568 | AX136: 568 | AY136: 568 | AZ136: 568 | BA136: 568 | BB136: 568
A137: 2018-07-06 | B137: Freitag | D137: Zugüberführung Dresden Friedrichstadt --> Minden & 1 Schichtbetrieb | E137: 491 | F137: 491 | G137: 491 | H137: 491 | I137: 491 | J137: 491 | K137: 491 | L137: 491 | M137: 491 | N137: 491 | O137: 491 | P137: 491 | Q137: 491 | R137: 491 | S137: 491 | T137: - | U137: - | V137: - | W137: 491 | X137: 491 | Y137: 491 | Z137: 491 | AA137: 491 | AB137: 491 | AC137: 491 | AD137: 491 | AE137: 491 | AF137: 491 | AG137: 491 | AH137: 491 | AI137: 491 | AJ137: 491 | AK137: 491 | AL137: 491 | AM137: 491 | AN137: 491 | AO137: 491 | AP137: 491 | AR137: 491 | AV137: 491 | AW137: 491 | AX137: 491 | AY137: 491 | AZ137: 491 | BA137: 491 | BB137: 491
A138: 2018-07-07 | B138: Samstag | T138: - | U138: - | V138: - | AD138: 826 | AE138: 826 | AF138: 826 | AG138: 826 | AH138: 826 | AI138: 826 | AJ138: 826 | AK138: 826 | AL138: 826 | AM138: 826 | AN138: 826 | AO138: 826 | AP138: 826 | AR138: 826 | AV138: 826 | AW138: 826 | AX138: 826 | AY138: 826 | AZ138: 826 | BA138: 826 | BB138: 826
A139: 2018-07-08 | B139: Sonntag | T139: - | U139: - | V139: - | AD139: 826 | AE139: 826 | AF139: 826 | AG139: 826 | AH139: 826 | AI139: 826 | AJ139: 826 | AK139: 826 | AL139: 826 | AM139: 826 | AN139: 826 | AO139: 826 | AP139: 826 | AR139: 826 | AV139: 826 | AW139: 826 | AX139: 826 | AY139: 826 | AZ139: 826 | BA139: 826 | BB139: 826
A140: 2018-07-09 | B140: Montag | D140: Zugfahrt Norddeutsche-Schleife 1 Woche (2 Schichtbetrieb)_ größere Runde | E140: 928 | F140: 928 | G140: 928 | H140: 928 | I140: 928 | J140: 928 | K140: 928 | L140: 928 | M140: 928 | N140: 928 | O140: 928 | P140: 928 | Q140: 928 | R140: 928 | S140: 928 | T140: - | U140: - | V140: - | W140: 928 | X140: 928 | Y140: 928 | Z140: 928 | AA140: 928 | AB140: 928 | AC140: 928 | AD140: 826 | AE140: 826 | AF140: 826 | AG140: 826 | AH140: 826 | AI140: 826 | AJ140: 826 | AK140: 826 | AL140: 826 | AM140: 826 | AN140: 826 | AO140: 826 | AP140: 826 | AV140: 826 | AW140: 826 | AX140: 826 | AY140: 826 | AZ140: 826 | BA140: 826 | BB140: 826
A141: 2018-07-10 | B141: Dienstag | D141: Zugfahrt Norddeutsche-Schleife 1 Woche (2 Schichtbetrieb)_ größere Runde | E141: 928 | F141: 928 | G141: 928 | H141: 928 | I141: 928 | J141: 928 | K141: 928 | L141: 928 | M141: 928 | N141: 928 | O141: 928 | P141: 928 | Q141: 928 | R141: 928 | S141: 928 | T141: - | U141: - | V141: - | W141: 928 | X141: 928 | Y141: 928 | Z141: 928 | AA141: 928 | AB141: 928 | AC141: 928 | AD141: 826 | AE141: 826 | AF141: 826 | AG141: 826 | AH141: 826 | AI141: 826 | AJ141: 826 | AK141: 826 | AL141: 826 | AM141: 826 | AN141: 826 | AO141: 826 | AP141: 826 | AV141: 826 | AW141: 826 | AX141: 826 | AY141: 826 | AZ141: 826 | BA141: 826 | BB141: 826
A142: 2018-07-11 | B142: Mittwoch | D142: Zugfahrt Norddeutsche-Schleife 1 Woche (2 Schichtbetrieb)_ größere Runde | E142: 928 | F142: 928 | G142: 928 | H142: 928 | I142: 928 | J142: 928 | K142: 928 | L142: 928 | M142: 928 | N142: 928 | O142: 928 | P142: 928 | Q142: 928 | R142: 928 | S142: 928 | T142: - | U142: - | V142: - | W142: 928 | X142: 928 | Y142: 928 | Z142: 928 | AA142: 928 | AB142: 928 | AC142: 928 | AD142: 826 | AE142: 826 | AF142: 826 | AG142: 826 | AH142: 826 | AI142: 826 | AJ142: 826 | AK142: 826 | AL142: 826 | AM142: 826 | AN142: 826 | AO142: 826 | AP142: 826 | AV142: 826 | AW142: 826 | AX142: 826 | AY142: 826 | AZ142: 826 | BA142: 826 | BB142: 826
A143: 2018-07-12 | B143: Donnerstag | D143: Zugfahrt Norddeutsche-Schleife 1 Woche (2 Schichtbetrieb)_ größere Runde | E143: 928 | F143: 928 | G143: 928 | H143: 928 | I143: 928 | J143: 928 | K143: 928 | L143: 928 | M143: 928 | N143: 928 | O143: 928 | P143: 928 | Q143: 928 | R143: 928 | S143: 928 | T143: - | U143: - | V143: - | W143: 928 | X143: 928 | Y143: 928 | Z143: 928 | AA143: 928 | AB143: 928 | AC143: 928 | AD143: 826 | AE143: 826 | AF143: 826 | AG143: 826 | AH143: 826 | AI143: 826 | AJ143: 826 | AK143: 826 | AL143: 826 | AM143: 826 | AN143: 826 | AO143: 826 | AP143: 826 | AV143: 826 | AW143: 826 | AX143: 826 | AY143: 826 | AZ143: 826 | BA143: 826 | BB143: 826
A144: 2018-07-13 | B144: Freitag | D144: Zugfahrt Norddeutsche-Schleife 1 Woche (2 Schichtbetrieb)_ größere Runde | E144: 928 | F144: 928 | G144: 928 | H144: 928 | I144: 928 | J144: 928 | K144: 928 | L144: 928 | M144: 928 | N144: 928 | O144: 928 | P144: 928 | Q144: 928 | R144: 928 | S144: 928 | T144: - | U144: - | V144: - | W144: 928 | X144: 928 | Y144: 928 | Z144: 928 | AA144: 928 | AB144: 928 | AC144: 928 | AD144: 826 | AE144: 826 | AF144: 826 | AG144: 826 | AH144: 826 | AI144: 826 | AJ144: 826 | AK144: 826 | AL144: 826 | AM144: 826 | AN144: 826 | AO144: 826 | AP144: 826 | AV144: 826 | AW144: 826 | AX144: 826 | AY144: 826 | AZ144: 826 | BA144: 826 | BB144: 826
A145: 2018-07-14 | B145: Samstag | D145: Zugfahrt Norddeutsche-Schleife 1 Wochenende_ größere Runde | E145: 464 | F145: 464 | G145: 464 | H145: 464 | I145: 464 | J145: 464 | K145: 464 | L145: 464 | M145: 464 | N145: 464 | O145: 464 | P145: 464 | Q145: 464 | R145: 464 | S145: 464 | T145: - | U145: - | V145: - | W145: 464 | X145: 464 | Y145: 464 | Z145: 464 | AA145: 464 | AB145: 464 | AC145: 464 | AD145: 826 | AE145: 826 | AF145: 826 | AG145: 826 | AH145: 826 | AI145: 826 | AJ145: 826 | AK145: 826 | AL145: 826 | AM145: 826 | AN145: 826 | AO145: 826 | AP145: 826 | AQ145: 826 | AR145: 826 | AV145: 826 | AW145: 826 | AX145: 826 | AY145: 826 | AZ145: 826 | BA145: 826 | BB145: 826
A146: 2018-07-15 | B146: Sonntag | D146: Zugfahrt Norddeutsche-Schleife 1 Wochenende_ größere Runde | E146: 464 | F146: 464 | G146: 464 | H146: 464 | I146: 464 | J146: 464 | K146: 464 | L146: 464 | M146: 464 | N146: 464 | O146: 464 | P146: 464 | Q146: 464 | R146: 464 | S146: 464 | T146: - | U146: - | V146: - | W146: 464 | X146: 464 | Y146: 464 | Z146: 464 | AA146: 464 | AB146: 464 | AC146: 464 | AD146: 826 | AE146: 826 | AF146: 826 | AG146: 826 | AH146: 826 | AI146: 826 | AJ146: 826 | AK146: 826 | AL146: 826 | AM146: 826 | AN146: 826 | AO146: 826 | AP146: 826 | AQ146: 826 | AR146: 826 | AV146: 826 | AW146: 826 | AX146: 826 | AY146: 826 | AZ146: 826 | BA146: 826 | BB146: 826
A147: 2018-07-16 | B147: Montag | D147: Zugüberführung Minden --> Köln & 1 Schichtbetrieb | E147: 458 | F147: 458 | G147: 458 | H147: 458 | I147: 458 | J147: 458 | K147: 458 | L147: 458 | M147: 458 | N147: 458 | O147: 458 | P147: 458 | Q147: 458 | R147: 458 | S147: 458 | T147: - | U147: - | V147: - | W147: 458 | X147: 458 | Y147: 458 | Z147: 458 | AA147: 458 | AB147: 458 | AC147: 458 | AD147: 436 | AE147: 436 | AF147: 436 | AG147: 436 | AH147: 436 | AI147: 436 | AJ147: 436 | AK147: 436 | AL147: 436 | AM147: 436 | AN147: 436 | AO147: 436 | AP147: 436 | AQ147: 436 | AR147: 436 | AV147: 436 | AW147: 436 | AX147: 436 | AY147: 436 | AZ147: 436 | BA147: 436 | BB147: 436
A148: 2018-07-17 | B148: Dienstag | D148: Zugfahrt Rheintalstrecke Woche (2 Schichtbetrieb) | E148: 736 | F148: 736 | G148: 736 | H148: 736 | I148: 736 | J148: 736 | K148: 736 | L148: 736 | M148: 736 | N148: 736 | O148: 736 | P148: 736 | Q148: 736 | R148: 736 | S148: 736 | T148: - | U148: - | V148: - | W148: 736 | X148: 736 | Y148: 736 | Z148: 736 | AA148: 736 | AB148: 736 | AC148: 736 | AD148: 751 | AE148: 751 | AF148: 751 | AG148: 751 | AH148: 751 | AI148: 751 | AJ148: 751 | AK148: 751 | AL148: 751 | AM148: 751 | AN148: 751 | AO148: 751 | AP148: 751 | AQ148: 751 | AR148: 751 | AV148: 751 | AW148: 751 | AX148: 751 | AY148: 751 | AZ148: 751 | BA148: 751 | BB148: 751
A149: 2018-07-18 | B149: Mittwoch | D149: Zugfahrt Rheintalstrecke Woche (2 Schichtbetrieb) | E149: 736 | F149: 736 | G149: 736 | H149: 736 | I149: 736 | J149: 736 | K149: 736 | L149: 736 | M149: 736 | N149: 736 | O149: 736 | P149: 736 | Q149: 736 | R149: 736 | S149: 736 | T149: - | U149: - | V149: - | W149: 736 | X149: 736 | Y149: 736 | Z149: 736 | AA149: 736 | AB149: 736 | AC149: 736 | AD149: 751 | AE149: 751 | AF149: 751 | AG149: 751 | AH149: 751 | AI149: 751 | AJ149: 751 | AK149: 751 | AL149: 751 | AM149: 751 | AN149: 751 | AO149: 751 | AP149: 751 | AQ149: 751 | AR149: 751 | AV149: 751 | AW149: 751 | AX149: 751 | AY149: 751 | AZ149: 751 | BA149: 751 | BB149: 751
A150: 2018-07-19 | B150: Donnerstag | D150: Zugfahrt Rheintalstrecke Woche (2 Schichtbetrieb) | E150: 736 | F150: 736 | G150: 736 | H150: 736 | I150: 736 | J150: 736 | K150: 736 | L150: 736 | M150: 736 | N150: 736 | O150: 736 | P150: 736 | Q150: 736 | R150: 736 | S150: 736 | T150: - | U150: - | V150: - | W150: 736 | X150: 736 | Y150: 736 | Z150: 736 | AA150: 736 | AB150: 736 | AC150: 736 | AD150: 751 | AE150: 751 | AF150: 751 | AG150: 751 | AH150: 751 | AI150: 751 | AJ150: 751 | AK150: 751 | AL150: 751 | AM150: 751 | AN150: 751 | AO150: 751 | AP150: 751 | AQ150: 751 | AR150: 751 | AV150: 751 | AW150: 751 | AX150: 751 | AY150: 751 | AZ150: 751 | BA150: 751 | BB150: 751
A151: 2018-07-20 | B151: Freitag | D151: Zugüberführung Köln --> Minden & 1 Schichtbetrieb | E151: 457 | F151: 457 | G151: 457 | H151: 457 | I151: 457 | J151: 457 | K151: 457 | L151: 457 | M151: 457 | N151: 457 | O151: 457 | P151: 457 | Q151: 457 | R151: 457 | S151: 457 | T151: - | U151: - | V151: - | W151: 457 | X151: 457 | Y151: 457 | Z151: 457 | AA151: 457 | AB151: 457 | AC151: 457 | AD151: 576 | AE151: 576 | AF151: 576 | AG151: 576 | AH151: 576 | AI151: 576 | AJ151: 576 | AK151: 576 | AL151: 576 | AM151: 576 | AN151: 576 | AO151: 576 | AP151: 576 | AQ151: 576 | AR151: 576 | AV151: 576 | AW151: 576 | AX151: 576 | AY151: 576 | AZ151: 576 | BA151: 576 | BB151: 576
A152: 2018-07-21 | B152: Samstag | D152: Zugfahrt Norddeutsche-Schleife 1 Wochenende_ größere Runde | E152: 464 | F152: 464 | G152: 464 | H152: 464 | I152: 464 | J152: 464 | K152: 464 | L152: 464 | M152: 464 | N152: 464 | O152: 464 | P152: 464 | Q152: 464 | R152: 464 | S152: 464 | T152: - | U152: - | V152: - | W152: 464 | X152: 464 | Y152: 464 | Z152: 464 | AA152: 464 | AB152: 464 | AC152: 464 | AD152: 826 | AE152: 826 | AF152: 826 | AG152: 826 | AH152: 826 | AI152: 826 | AJ152: 826 | AK152: 826 | AL152: 826 | AM152: 826 | AN152: 826 | AO152: 826 | AP152: 826 | AQ152: 826 | AR152: 826 | AV152: 826 | AW152: 826 | AX152: 826 | AY152: 826 | AZ152: 826 | BA152: 826 | BB152: 826
A153: 2018-07-22 | B153: Sonntag | D153: Zugfahrt Norddeutsche-Schleife 1 Wochenende_ größere Runde | E153: 464 | F153: 464 | G153: 464 | H153: 464 | I153: 464 | J153: 464 | K153: 464 | L153: 464 | M153: 464 | N153: 464 | O153: 464 | P153: 464 | Q153: 464 | R153: 464 | S153: 464 | T153: - | U153: - | V153: - | W153: 464 | X153: 464 | Y153: 464 | Z153: 464 | AA153: 464 | AB153: 464 | AC153: 464 | AD153: 847 | AE153: 847 | AF153: 847 | AG153: 847 | AH153: 847 | AI153: 847 | AJ153: 847 | AK153: 847 | AL153: 847 | AM153: 847 | AN153: 847 | AO153: 847 | AP153: 847 | AQ153: 847 | AR153: 847 | AV153: 847 | AW153: 847 | AX153: 847 | AY153: 847 | AZ153: 847 | BA153: 847 | BB153: 847
A154: 2018-07-23 | B154: Montag | D154: Zugüberführung Minden --> Nürnberg & 1 Schichtbetrieb | E154: 925 | F154: 925 | G154: 925 | H154: 925 | I154: 925 | J154: 925 | K154: 925 | L154: 925 | M154: 925 | N154: 925 | O154: 925 | P154: 925 | Q154: 925 | R154: 925 | S154: 925 | T154: - | U154: - | V154: - | W154: 925 | X154: 925 | Y154: 925 | Z154: 925 | AA154: 925 | AB154: 925 | AC154: 925 | AD154: 1050 | AE154: 1050 | AF154: 1050 | AG154: 1050 | AH154: 1050 | AI154: 1050 | AJ154: 1050 | AK154: 1050 | AL154: 1050 | AM154: 1050 | AN154: 1050 | AO154: 1050 | AP154: 1050 | AQ154: 1050 | AR154: 1050 | AV154: 1050 | AW154: 1050 | AX154: 1050 | AY154: 1050 | AZ154: 1050 | BA154: 1050 | BB154: 1050
A155: 2018-07-24 | B155: Dienstag | C155: Lärmmessung - Donauwörth- Fa. Prose | D155: Zugfahrt Süddeutsche-Schleife Woche (2 Schichtbetrieb) | E155: 860 | F155: 860 | G155: 860 | H155: 860 | I155: 860 | J155: 860 | K155: 860 | L155: 860 | M155: 860 | N155: 860 | O155: 860 | P155: 860 | Q155: 860 | R155: 860 | S155: 860 | T155: - | U155: - | V155: - | W155: 860 | X155: 860 | Y155: 860 | Z155: 860 | AA155: 860 | AB155: 860 | AC155: 860 | AD155: 844 | AE155: 844 | AF155: 844 | AG155: 844 | AH155: 844 | AI155: 844 | AJ155: 844 | AK155: 844 | AL155: 844 | AM155: 844 | AN155: 844 | AO155: 844 | AP155: 844 | AQ155: 844 | AR155: 844 | AV155: 844 | AW155: 844 | AX155: 844 | AY155: 844 | AZ155: 844 | BA155: 844 | BB155: 844
A156: 2018-07-25 | B156: Mittwoch | C156: Lärmmessung - Donauwörth- Fa. Prose | D156: Zugfahrt Süddeutsche-Schleife Woche (2 Schichtbetrieb) | E156: 860 | F156: 860 | G156: 860 | H156: 860 | I156: 860 | J156: 860 | K156: 860 | L156: 860 | M156: 860 | N156: 860 | O156: 860 | P156: 860 | Q156: 860 | R156: 860 | S156: 860 | T156: - | U156: - | V156: - | W156: 860 | X156: 860 | Y156: 860 | Z156: 860 | AA156: 860 | AB156: 860 | AC156: 860 | AD156: 844 | AE156: 844 | AF156: 844 | AG156: 844 | AH156: 844 | AI156: 844 | AJ156: 844 | AK156: 844 | AL156: 844 | AM156: 844 | AN156: 844 | AO156: 844 | AP156: 844 | AQ156: 844 | AR156: 844 | AV156: 844 | AW156: 844 | AX156: 844 | AY156: 844 | AZ156: 844 | BA156: 844 | BB156: 844
A157: 2018-07-26 | B157: Donnerstag | C157: Lärmmessung - Donauwörth- Fa. Prose | D157: Zugfahrt Süddeutsche-Schleife Woche (2 Schichtbetrieb) | E157: 860 | F157: 860 | G157: 860 | H157: 860 | I157: 860 | J157: 860 | K157: 860 | L157: 860 | M157: 860 | N157: 860 | O157: 860 | P157: 860 | Q157: 860 | R157: 860 | S157: 860 | T157: - | U157: - | V157: - | W157: 860 | X157: 860 | Y157: 860 | Z157: 860 | AA157: 860 | AB157: 860 | AC157: 860 | AD157: 844 | AE157: 844 | AF157: 844 | AG157: 844 | AH157: 844 | AI157: 844 | AJ157: 844 | AK157: 844 | AL157: 844 | AM157: 844 | AN157: 844 | AO157: 844 | AP157: 844 | AQ157: 844 | AR157: 844 | AV157: 844 | AW157: 844 | AX157: 844 | AY157: 844 | AZ157: 844 | BA157: 844 | BB157: 844
A158: 2018-07-27 | B158: Freitag | D158: Zugüberführung Nürnberg --> Minden & 1 Schichtbetrieb | E158: 578 | F158: 578 | G158: 578 | H158: 578 | I158: 578 | J158: 578 | K158: 578 | L158: 578 | M158: 578 | N158: 578 | O158: 578 | P158: 578 | Q158: 578 | R158: 578 | S158: 578 | T158: - | U158: - | V158: - | W158: 578 | X158: 578 | Y158: 578 | Z158: 578 | AA158: 578 | AB158: 578 | AC158: 578 | AD158: 823 | AE158: 823 | AF158: 823 | AG158: 823 | AH158: 823 | AI158: 823 | AJ158: 823 | AK158: 823 | AL158: 823 | AM158: 823 | AN158: 823 | AO158: 823 | AP158: 823 | AQ158: 823 | AR158: 823 | AV158: 823 | AW158: 823 | AX158: 823 | AY158: 823 | AZ158: 823 | BA158: 823 | BB158: 823
A159: 2018-07-28 | B159: Samstag | T159: - | U159: - | V159: - | AD159: 413 | AE159: 413 | AF159: 413 | AG159: 413 | AH159: 413 | AI159: 413 | AJ159: 413 | AK159: 413 | AL159: 413 | AM159: 413 | AN159: 413 | AO159: 413 | AP159: 413 | AQ159: 413 | AR159: 413 | AV159: 413 | AW159: 413 | AX159: 413 | AY159: 413 | AZ159: 413 | BA159: 413 | BB159: 413
A160: 2018-07-29 | B160: Sonntag | T160: - | U160: - | V160: - | AD160: 413 | AE160: 413 | AF160: 413 | AG160: 413 | AH160: 413 | AI160: 413 | AJ160: 413 | AK160: 413 | AL160: 413 | AM160: 413 | AN160: 413 | AO160: 413 | AP160: 413 | AQ160: 413 | AR160: 413 | AV160: 413 | AW160: 413 | AX160: 413 | AY160: 413 | AZ160: 413 | BA160: 413 | BB160: 413
A161: 2018-07-30 | B161: Montag | D161: Zugüberführung Minden --> Gastrop/ Rauxel & 1 Schichtbetrieb | E161: 327 | F161: 327 | G161: 327 | H161: 327 | I161: 327 | J161: 327 | K161: 327 | L161: 327 | M161: 327 | N161: 327 | O161: 327 | P161: 327 | Q161: 327 | R161: 327 | S161: 327 | T161: - | U161: - | V161: - | W161: 327 | X161: 327 | Y161: 327 | Z161: 327 | AA161: 327 | AB161: 327 | AC161: 327 | AD161: 339 | AE161: 339 | AF161: 339 | AG161: 339 | AH161: 339 | AI161: 339 | AJ161: 339 | AK161: 339 | AL161: 339 | AM161: 339 | AN161: 339 | AO161: 339 | AP161: 339 | AQ161: 339 | AR161: 339 | AW161: 339 | AX161: 339 | AY161: 339 | AZ161: 339 | BA161: 339 | BB161: 339
A162: 2018-07-31 | B162: Dienstag | D162: Zugfahrt Westdeutsche-Schleife Woche (2 Schichtbetrieb) | E162: 516 | F162: 516 | G162: 516 | H162: 516 | I162: 516 | J162: 516 | K162: 516 | L162: 516 | M162: 516 | N162: 516 | O162: 516 | P162: 516 | Q162: 516 | R162: 516 | S162: 516 | T162: - | U162: - | V162: - | W162: 516 | X162: 516 | Y162: 516 | Z162: 516 | AA162: 516 | AB162: 516 | AC162: 516 | AD162: 660 | AE162: 660 | AF162: 660 | AG162: 660 | AH162: 660 | AI162: 660 | AJ162: 660 | AK162: 660 | AL162: 660 | AM162: 660 | AN162: 660 | AO162: 660 | AP162: 660 | AQ162: 660 | AR162: 660 | AW162: 660 | AX162: 660 | AY162: 660 | AZ162: 660 | BA162: 660 | BB162: 660
A163: 2018-08-01 | B163: Mittwoch | C163: Bundesfeier CH | D163: Zugfahrt Westdeutsche-Schleife Woche (2 Schichtbetrieb) | E163: 516 | F163: 516 | G163: 516 | H163: 516 | I163: 516 | J163: 516 | K163: 516 | L163: 516 | M163: 516 | N163: 516 | O163: 516 | P163: 516 | Q163: 516 | R163: 516 | S163: 516 | T163: - | U163: - | V163: - | W163: 516 | X163: 516 | Y163: 516 | Z163: 516 | AA163: 516 | AB163: 516 | AC163: 516 | AD163: 660 | AE163: 660 | AF163: 660 | AG163: 660 | AH163: 660 | AI163: 660 | AJ163: 660 | AK163: 660 | AL163: 660 | AM163: 660 | AN163: 660 | AO163: 660 | AP163: 660 | AQ163: 660 | AR163: 660 | AW163: 660 | AX163: 660 | AY163: 660 | AZ163: 660 | BA163: 660 | BB163: 660
A164: 2018-08-02 | B164: Donnerstag | D164: Zugfahrt Westdeutsche-Schleife Woche (2 Schichtbetrieb) | E164: 516 | F164: 516 | G164: 516 | H164: 516 | I164: 516 | J164: 516 | K164: 516 | L164: 516 | M164: 516 | N164: 516 | O164: 516 | P164: 516 | Q164: 516 | R164: 516 | S164: 516 | T164: - | U164: - | V164: - | W164: 516 | X164: 516 | Y164: 516 | Z164: 516 | AA164: 516 | AB164: 516 | AC164: 516 | AD164: 660 | AE164: 660 | AF164: 660 | AG164: 660 | AH164: 660 | AI164: 660 | AJ164: 660 | AK164: 660 | AL164: 660 | AM164: 660 | AN164: 660 | AO164: 660 | AP164: 660 | AQ164: 660 | AR164: 660 | AW164: 660 | AX164: 660 | AY164: 660 | AZ164: 660 | BA164: 660 | BB164: 660
A165: 2018-08-03 | B165: Freitag | D165: Zugüberführung Gastrop/ Rauxel --> Minden & 1 Schichtbetrieb | E165: 349 | F165: 349 | G165: 349 | H165: 349 | I165: 349 | J165: 349 | K165: 349 | L165: 349 | M165: 349 | N165: 349 | O165: 349 | P165: 349 | Q165: 349 | R165: 349 | S165: 349 | T165: - | U165: - | V165: - | W165: 349 | X165: 349 | Y165: 349 | Z165: 349 | AA165: 349 | AB165: 349 | AC165: 349 | AD165: 378 | AE165: 378 | AF165: 378 | AG165: 378 | AH165: 378 | AI165: 378 | AJ165: 378 | AK165: 378 | AL165: 378 | AM165: 378 | AN165: 378 | AO165: 378 | AP165: 378 | AQ165: 378 | AR165: 378 | AW165: 378 | AX165: 378 | AY165: 378 | AZ165: 378 | BA165: 378 | BB165: 378
A166: 2018-08-04 | B166: Samstag | T166: - | U166: - | V166: - | AD166: 413 | AE166: 413 | AF166: 413 | AG166: 413 | AH166: 413 | AI166: 413 | AJ166: 413 | AK166: 413 | AL166: 413 | AM166: 413 | AN166: 413 | AO166: 413 | AP166: 413 | AQ166: 413 | AR166: 413 | AW166: 413 | AX166: 413 | AY166: 413 | AZ166: 413 | BA166: 413 | BB166: 413
A167: 2018-08-05 | B167: Sonntag | T167: - | U167: - | V167: - | AD167: 413 | AE167: 413 | AF167: 413 | AG167: 413 | AH167: 413 | AI167: 413 | AJ167: 413 | AK167: 413 | AL167: 413 | AM167: 413 | AN167: 413 | AO167: 413 | AP167: 413 | AQ167: 413 | AR167: 413 | AW167: 413 | AX167: 413 | AY167: 413 | AZ167: 413 | BA167: 413 | BB167: 413
A168: 2018-08-06 | B168: Montag | D168: Verschleißmessung groß Minden | E168: - | F168: - | G168: - | H168: - | I168: - | J168: - | K168: - | L168: - | M168: - | N168: - | O168: - | P168: 928 | Q168: 928 | R168: 928 | S168: 928 | T168: - | U168: - | V168: - | W168: 928 | X168: 928 | Y168: 928 | Z168: 928 | AA168: 928 | AB168: 928 | AC168: 928 | AD168: 0 | AE168: 0 | AF168: 0 | AG168: 0 | AH168: 0 | AI168: 0 | AJ168: 0 | AK168: 0 | AL168: 0 | AM168: 0 | AN168: 0 | AO168: 0 | AP168: 0 | AQ168: 0 | AR168: 0 | AV168: 0 | AW168: 0 | AX168: 0 | AY168: 0 | AZ168: 0 | BA168: 0 | BB168: 0
A169: 2018-08-07 | B169: Dienstag | C169: Fahrten während der zweiten Schicht aufgrund Flachstellen am CTW 185-2 in Hameln gestoppt. | D169: Verschleißmessung groß Minden | E169: - | F169: - | G169: - | H169: - | I169: - | J169: - | K169: - | L169: - | M169: - | N169: - | O169: - | P169: 928 | Q169: 928 | R169: 928 | S169: 928 | T169: - | U169: - | V169: - | W169: 928 | X169: 928 | Y169: 928 | Z169: 928 | AA169: 928 | AB169: 928 | AC169: 928 | AD169: 0 | AE169: 0 | AF169: 0 | AG169: 0 | AH169: 0 | AI169: 0 | AJ169: 0 | AK169: 0 | AL169: 720 | AM169: 720 | AN169: 0 | AO169: 720 | AP169: 0 | AQ169: 720 | AR169: 0 | AS169: 0 | AV169: 0 | AW169: 720 | AX169: 0 | AY169: 720 | AZ169: 720 | BA169: 720 | BB169: 720
A170: 2018-08-08 | B170: Mittwoch | C170: Abholung der restlichen Wagen von Hameln. CT-Wagen 185-2 wurde in Hameln abgestellt und muss geprüft werden. | D170: Verschleißmessung groß Minden | E170: 464 | F170: 464 | G170: 464 | H170: 464 | I170: 464 | J170: 464 | K170: 464 | L170: 464 | M170: 464 | N170: 464 | O170: 464 | P170: 464 | Q170: 464 | R170: 464 | S170: 464 | T170: - | U170: - | V170: - | W170: 464 | X170: 464 | Y170: 464 | Z170: 464 | AA170: 464 | AB170: 464 | AC170: 464 | AD170: 0 | AE170: 0 | AF170: 0 | AG170: 0 | AH170: 0 | AI170: 0 | AJ170: 0 | AK170: 0 | AL170: 106 | AM170: 106 | AN170: 0 | AO170: 106 | AP170: 0 | AQ170: 106 | AR170: 0 | AS170: 0 | AV170: 0 | AW170: 106 | AX170: 0 | AY170: 106 | AZ170: 106 | BA170: 106 | BB170: 0
A171: 2018-08-09 | B171: Donnerstag | C171: Ausfall der 2ten Runde Wegen Unwetter. | D171: Verschleißmessung groß Minden | E171: 928 | F171: 928 | G171: 928 | H171: 928 | I171: 928 | J171: 928 | K171: 928 | L171: 928 | M171: 928 | N171: 928 | O171: 928 | P171: 0 | Q171: 0 | R171: 0 | S171: 0 | T171: - | U171: - | V171: - | W171: 0 | X171: 0 | Y171: 0 | Z171: 0 | AA171: 0 | AB171: 0 | AC171: 0 | AD171: 412 | AE171: 412 | AF171: 412 | AG171: 412 | AH171: 412 | AI171: 412 | AJ171: 412 | AK171: 412 | AL171: 0 | AM171: 0 | AN171: 412 | AO171: 0 | AP171: 0 | AQ171: 0 | AR171: 412 | AS171: 0 | AV171: 0 | AW171: 0 | AX171: 412 | AY171: 0 | AZ171: 0 | BA171: 0 | BB171: 0
A172: 2018-08-10 | B172: Freitag | C172: Ausfall wegen Vorbereitung Ministerbesuch. | D172: Verschleißmessung groß Minden | E172: 928 | F172: 928 | G172: 928 | H172: 928 | I172: 928 | J172: 928 | K172: 928 | L172: 928 | M172: 928 | N172: 928 | O172: 928 | P172: 0 | Q172: 0 | R172: 0 | S172: 0 | T172: - | U172: - | V172: - | W172: 0 | X172: 0 | Y172: 0 | Z172: 0 | AA172: 0 | AB172: 0 | AC172: 0 | AD172: 0 | AE172: 0 | AF172: 0 | AG172: 0 | AH172: 0 | AI172: 0 | AJ172: 0 | AK172: 0 | AL172: 0 | AM172: 0 | AN172: 0 | AO172: 0 | AP172: 0 | AQ172: 0 | AR172: 0 | AS172: 0 | AV172: 0 | AW172: 0 | AX172: 0 | AY172: 0 | AZ172: 0 | BA172: 0 | BB172: 0
A173: 2018-08-11 | B173: Samstag | C173: Auf Wunsch von der ARGE wegen Ministerbesuch nur bestimmte Wagen fahren | T173: - | U173: - | V173: - | AD173: 0 | AE173: 0 | AF173: 0 | AG173: 413 | AH173: 413 | AI173: 0 | AJ173: 413 | AK173: 413 | AL173: 413 | AM173: 413 | AN173: 0 | AO173: 413 | AP173: 413 | AQ173: 413 | AR173: 0 | AS173: 0 | AV173: 0 | AW173: 413 | AX173: 0 | AY173: 413 | AZ173: 0 | BA173: 413 | BB173: 0
A174: 2018-08-12 | B174: Sonntag | C174: Auf Wunsch von der ARGE wegen Ministerbesuch nur bestimmte Wagen fahren | T174: - | U174: - | V174: - | AD174: 0 | AE174: 0 | AF174: 0 | AG174: 413 | AH174: 413 | AI174: 0 | AJ174: 413 | AK174: 413 | AL174: 413 | AM174: 413 | AN174: 0 | AO174: 413 | AP174: 413 | AQ174: 413 | AR174: 0 | AS174: 0 | AV174: 0 | AW174: 413 | AX174: 0 | AY174: 413 | AZ174: 0 | BA174: 413 | BB174: 0
A175: 2018-08-13 | B175: Montag | C175: Bitte beachten: Überführung 7 Wagen nach Berlin "Ministerbesuch. Aufgrund von mehreren Baustellen (ab KW 31), muss umdisponiert werden und andere Norddeutscheschleife organisiert werden, --> Minden - Osnabrück - Münster - Hamm - Lippstadt - Paderborn - Minden | D175: Zugfahrt Norddeutsche-Schleife 1 Woche (2 Schichtbetrieb)_ größere Runde | E175: 928 | F175: 928 | G175: 928 | H175: 928 | I175: 928 | J175: 928 | K175: 928 | L175: 928 | M175: 928 | N175: 928 | O175: 928 | P175: 928 | Q175: 928 | R175: 928 | S175: 928 | T175: - | U175: - | V175: - | W175: 928 | X175: 928 | Y175: 928 | Z175: 928 | AA175: 928 | AB175: 928 | AC175: 928 | AD175: 348 | AE175: 348 | AF175: 348 | AG175: 413 | AH175: 413 | AI175: 348 | AJ175: 413 | AK175: 413 | AL175: 413 | AM175: 413 | AN175: 348 | AO175: 413 | AP175: 413 | AQ175: 413 | AR175: 348 | AS175: 0 | AV175: 0 | AW175: 413 | AX175: 348 | AY175: 413 | AZ175: 413 | BA175: 413 | BB175: 0
A176: 2018-08-14 | B176: Dienstag | C176: Aufgrund von mehreren Baustellen (ab KW 31), muss umdisponiert werden und andere Norddeutscheschleife organisiert werden, --> Minden - Osnabrück - Münster - Hamm - Lippstadt - Paderborn - Minden | D176: Zugfahrt Norddeutsche-Schleife 1 Woche (2 Schichtbetrieb)_ größere Runde | E176: 928 | F176: 928 | G176: 928 | H176: 928 | I176: 928 | J176: 928 | K176: 928 | L176: 928 | M176: 928 | N176: 928 | O176: 928 | P176: 928 | Q176: 928 | R176: 928 | S176: 928 | T176: - | U176: - | V176: - | W176: 928 | X176: 928 | Y176: 928 | Z176: 928 | AA176: 928 | AB176: 928 | AC176: 928 | AD176: 0 | AE176: 0 | AF176: 0 | AG176: 413 | AH176: 413 | AI176: 0 | AJ176: 413 | AK176: 413 | AL176: 413 | AM176: 413 | AN176: 0 | AO176: 413 | AP176: 413 | AQ176: 413 | AR176: 0 | AS176: 0 | AV176: 0 | AW176: 413 | AX176: 0 | AY176: 413 | AZ176: 413 | BA176: 413 | BB176: 0
A177: 2018-08-15 | B177: Mittwoch | C177: Bitte beachten: Rück-Überführung 7 Wagen nach Minden "Ministerbesuch. Aufgrund von mehreren Baustellen (ab KW 31), muss umdisponiert werden und andere Norddeutscheschleife organisiert werden, --> Minden - Osnabrück - Münster - Hamm - Lippstadt - Paderborn - Minden | D177: Zugfahrt Norddeutsche-Schleife 1 Woche (2 Schichtbetrieb)_ größere Runde | E177: 928 | F177: 928 | G177: 928 | H177: 928 | I177: 928 | J177: 928 | K177: 928 | L177: 928 | M177: 928 | N177: 928 | O177: 928 | P177: 928 | Q177: 928 | R177: 928 | S177: 928 | T177: - | U177: - | V177: - | W177: 928 | X177: 928 | Y177: 928 | Z177: 928 | AA177: 928 | AB177: 928 | AC177: 928 | AD177: 348 | AE177: 348 | AF177: 348 | AG177: 413 | AH177: 413 | AI177: 348 | AJ177: 413 | AK177: 413 | AL177: 413 | AM177: 413 | AN177: 348 | AO177: 413 | AP177: 413 | AQ177: 413 | AR177: 348 | AW177: 413 | AX177: 348 | AY177: 413 | AZ177: 413 | BA177: 413
A178: 2018-08-16 | B178: Donnerstag | C178: Zugbildung in Minden. Aufgrund von mehreren Baustellen (ab KW 31), muss umdisponiert werden und andere Norddeutscheschleife organisiert werden, --> Minden - Osnabrück - Münster - Hamm - Lippstadt - Paderborn - Minden | D178: Zugfahrt Norddeutsche-Schleife 1 Woche (2 Schichtbetrieb)_ größere Runde | E178: 928 | F178: 928 | G178: 928 | H178: 928 | I178: 928 | J178: 928 | K178: 928 | L178: 928 | M178: 928 | N178: 928 | O178: 928 | P178: 928 | Q178: 928 | R178: 928 | S178: 928 | T178: - | U178: - | V178: - | W178: 928 | X178: 928 | Y178: 928 | Z178: 928 | AA178: 928 | AB178: 928 | AC178: 928 | AD178: 0 | AE178: 0 | AF178: 0 | AG178: 0 | AH178: 0 | AI178: 0 | AJ178: 0 | AK178: 0 | AL178: 0 | AM178: 0 | AN178: 0 | AO178: 0 | AP178: 0 | AQ178: 0 | AR178: 0 | AS178: 0 | AV178: 0 | AW178: 0 | AX178: 0 | AY178: 0 | AZ178: 0 | BA178: 0 | BB178: 0
A179: 2018-08-17 | B179: Freitag | D179: Zugfahrt Norddeutsche-Schleife 1 Woche (2 Schichtbetrieb)_ größere Runde | E179: 928 | F179: 928 | G179: 928 | H179: 928 | I179: 928 | J179: 928 | K179: 928 | L179: 928 | M179: 928 | N179: 928 | O179: 928 | P179: 928 | Q179: 928 | R179: 928 | S179: 928 | T179: - | U179: - | V179: - | W179: 928 | X179: 928 | Y179: 928 | Z179: 928 | AA179: 928 | AB179: 928 | AC179: 928
A180: 2018-08-18 | B180: Samstag | T180: - | U180: - | V180: -
A181: 2018-08-19 | B181: Sonntag | T181: - | U181: - | V181: -
A182: 2018-08-20 | B182: Montag | C182: Aufgrund des Ausfalls der Lärmmessungen, wurde die Norddeutsche Schleife in KW 34 gefahren. Aufgrund von Auffälligkeiten /technischen Mängeln an 5 Wagen, wurden 5 Wagen ausgesetzt. Hinweis: andere Schleife, da Baustellen vorhanden sind | D182: Zugüberführung Minden --> Nürnberg & 1 Schichtbetrieb | E182: 925 | F182: 925 | G182: 925 | H182: 925 | I182: 925 | J182: 925 | K182: 925 | L182: 925 | M182: 925 | N182: 925 | O182: 925 | P182: 925 | Q182: 925 | R182: 925 | S182: 925 | T182: - | U182: - | V182: - | W182: 925 | X182: 925 | Y182: 925 | Z182: 925 | AA182: 925 | AB182: 925 | AC182: 925 | AD182: 413 | AE182: 413 | AF182: 413 | AK182: 413 | AL182: 413 | AM182: 413 | AN182: 413 | AO182: 413 | AP182: 413 | AQ182: 413 | AR182: 413 | AW182: 413 | AX182: 413 | AY182: 413 | AZ182: 413 | BA182: 0 | BB182: 0
A183: 2018-08-21 | B183: Dienstag | C183: Aufgrund von Auffälligkeiten /technischen Mängeln an 5 Wagen, wurden 5 Wagen ausgesetzt. Hinweis: andere Schleife, da Baustellen vorhanden sind | D183: Zugfahrt Süddeutsche-Schleife Woche (2 Schichtbetrieb) | E183: 860 | F183: 860 | G183: 860 | H183: 860 | I183: 860 | J183: 860 | K183: 860 | L183: 860 | M183: 860 | N183: 860 | O183: 860 | P183: 860 | Q183: 860 | R183: 860 | S183: 860 | T183: - | U183: - | V183: - | W183: 860 | X183: 860 | Y183: 860 | Z183: 860 | AA183: 860 | AB183: 860 | AC183: 860 | AD183: 826 | AE183: 826 | AF183: 826 | AK183: 826 | AL183: 826 | AM183: 826 | AN183: 826 | AO183: 826 | AP183: 826 | AQ183: 826 | AR183: 826 | AW183: 826 | AX183: 826 | AY183: 826 | AZ183: 826 | BA183: 0 | BB183: 0
A184: 2018-08-22 | B184: Mittwoch | C184: Aufgrund von Auffälligkeiten /technischen Mängeln an 5 Wagen, wurden 5 Wagen ausgesetzt. Hinweis: andere Schleife, da Baustellen vorhanden sind | D184: Zugfahrt Süddeutsche-Schleife Woche (2 Schichtbetrieb) | E184: 860 | F184: 860 | G184: 860 | H184: 860 | I184: 860 | J184: 860 | K184: 860 | L184: 860 | M184: 860 | N184: 860 | O184: 860 | P184: 860 | Q184: 860 | R184: 860 | S184: 860 | T184: - | U184: - | V184: - | W184: 860 | X184: 860 | Y184: 860 | Z184: 860 | AA184: 860 | AB184: 860 | AC184: 860 | AD184: 826 | AE184: 826 | AF184: 826 | AK184: 826 | AL184: 826 | AM184: 826 | AN184: 826 | AO184: 826 | AP184: 826 | AQ184: 826 | AR184: 826 | AW184: 826 | AX184: 826 | AY184: 826 | AZ184: 826 | BA184: 0 | BB184: 0
A185: 2018-08-23 | B185: Donnerstag | C185: Aufgrund von Auffälligkeiten /technischen Mängeln an 5 Wagen, wurden 5 Wagen ausgesetzt. Hinweis: andere Schleife, da Baustellen vorhanden sind | D185: Zugfahrt Süddeutsche-Schleife Woche (2 Schichtbetrieb) | E185: 860 | F185: 860 | G185: 860 | H185: 860 | I185: 860 | J185: 860 | K185: 860 | L185: 860 | M185: 860 | N185: 860 | O185: 860 | P185: 860 | Q185: 860 | R185: 860 | S185: 860 | T185: - | U185: - | V185: - | W185: 860 | X185: 860 | Y185: 860 | Z185: 860 | AA185: 860 | AB185: 860 | AC185: 860 | AD185: 701 | AE185: 701 | AF185: 701 | AK185: 701 | AL185: 701 | AM185: 701 | AN185: 701 | AO185: 701 | AP185: 701 | AQ185: 701 | AR185: 701 | AW185: 701 | AX185: 701 | AY185: 701 | AZ185: 701 | BA185: 0 | BB185: 0
A186: 2018-08-24 | B186: Freitag | C186: Aufgrund von Auffälligkeiten /technischen Mängeln an 5 Wagen, wurden 5 Wagen ausgesetzt. Hinweis: andere Schleife, da Baustellen vorhanden sind | D186: Zugüberführung Nürnberg --> Minden & 1 Schichtbetrieb | E186: 578 | F186: 578 | G186: 578 | H186: 578 | I186: 578 | J186: 578 | K186: 578 | L186: 578 | M186: 578 | N186: 578 | O186: 578 | P186: 578 | Q186: 578 | R186: 578 | S186: 578 | T186: - | U186: - | V186: - | W186: 578 | X186: 578 | Y186: 578 | Z186: 578 | AA186: 578 | AB186: 578 | AC186: 578 | AD186: 701 | AE186: 701 | AF186: 701 | AK186: 701 | AL186: 701 | AM186: 701 | AN186: 701 | AO186: 701 | AP186: 701 | AQ186: 701 | AR186: 701 | AW186: 701 | AX186: 701 | AY186: 701 | AZ186: 701 | BA186: 0 | BB186: 0
A187: 2018-08-25 | B187: Samstag | T187: - | U187: - | V187: -
A188: 2018-08-26 | B188: Sonntag | T188: - | U188: - | V188: -
A189: 2018-08-27 | B189: Montag | C189: Hinweis: andere Schleife, da Baustellen vorhanden sind | D189: Zugfahrt Norddeutsche-Schleife 1 Woche (2 Schichtbetrieb)_ größere Runde | E189: 928 | F189: 928 | G189: 928 | H189: 928 | I189: 928 | J189: 928 | K189: 928 | L189: 928 | M189: 928 | N189: 928 | O189: 928 | P189: 928 | Q189: 928 | R189: 928 | S189: 928 | T189: - | U189: - | V189: - | W189: 928 | X189: 928 | Y189: 928 | Z189: 928 | AA189: 928 | AB189: 928 | AC189: 928 | AD189: 826 | AE189: 826 | AF189: 826 | AK189: 826 | AL189: 826 | AM189: 826 | AN189: 826 | AO189: 826 | AP189: 826 | AQ189: 826 | AR189: 826 | AW189: 826 | AX189: 826 | AY189: 826 | AZ189: 826 | BA189: 0 | BB189: 0
A190: 2018-08-28 | B190: Dienstag | C190: Die ausgesetzten Wagen wurden in den Zugverband eingegeliedert. Hinweis: andere Schleife, da Baustellen vorhanden sind | D190: Zugfahrt Norddeutsche-Schleife 1 Woche (2 Schichtbetrieb)_ größere Runde | E190: 928 | F190: 928 | G190: 928 | H190: 928 | I190: 928 | J190: 928 | K190: 928 | L190: 928 | M190: 928 | N190: 928 | O190: 928 | P190: 928 | Q190: 928 | R190: 928 | S190: 928 | T190: - | U190: - | V190: - | W190: 928 | X190: 928 | Y190: 928 | Z190: 928 | AA190: 928 | AB190: 928 | AC190: 928 | AD190: 413 | AE190: 413 | AF190: 413 | AG190: 413 | AH190: 413 | AI190: 413 | AJ190: 413 | AK190: 413 | AL190: 413 | AM190: 413 | AN190: 413 | AO190: 413 | AP190: 413 | AQ190: 413 | AR190: 413 | AV190: 413 | AW190: 413 | AX190: 413 | AY190: 413 | AZ190: 413 | BA190: 413 | BB190: 0
A191: 2018-08-29 | B191: Mittwoch | C191: Hinweis: andere Schleife, da Baustellen vorhanden sind | D191: Zugfahrt Norddeutsche-Schleife 1 Woche (2 Schichtbetrieb)_ größere Runde | E191: 928 | F191: 928 | G191: 928 | H191: 928 | I191: 928 | J191: 928 | K191: 928 | L191: 928 | M191: 928 | N191: 928 | O191: 928 | P191: 928 | Q191: 928 | R191: 928 | S191: 928 | T191: - | U191: - | V191: - | W191: 928 | X191: 928 | Y191: 928 | Z191: 928 | AA191: 928 | AB191: 928 | AC191: 928 | AD191: 826 | AE191: 826 | AF191: 826 | AG191: 826 | AH191: 826 | AI191: 826 | AJ191: 826 | AK191: 826 | AL191: 826 | AM191: 826 | AN191: 826 | AO191: 826 | AP191: 826 | AQ191: 826 | AR191: 826 | AV191: 826 | AW191: 826 | AX191: 826 | AY191: 826 | AZ191: 826 | BA191: 826 | BB191: 0
A192: 2018-08-30 | B192: Donnerstag | C192: Hinweis: andere Schleife, da Baustellen vorhanden sind | D192: Zugfahrt Norddeutsche-Schleife 1 Woche (2 Schichtbetrieb)_ größere Runde | E192: 928 | F192: 928 | G192: 928 | H192: 928 | I192: 928 | J192: 928 | K192: 928 | L192: 928 | M192: 928 | N192: 928 | O192: 928 | P192: 928 | Q192: 928 | R192: 928 | S192: 928 | T192: - | U192: - | V192: - | W192: 928 | X192: 928 | Y192: 928 | Z192: 928 | AA192: 928 | AB192: 928 | AC192: 928 | AD192: 826 | AE192: 826 | AF192: 826 | AG192: 826 | AH192: 826 | AI192: 826 | AJ192: 826 | AK192: 826 | AL192: 826 | AM192: 826 | AN192: 826 | AO192: 826 | AP192: 826 | AQ192: 826 | AR192: 826 | AV192: 826 | AW192: 826 | AX192: 826 | AY192: 826 | AZ192: 826 | BA192: 826 | BB192: 0
A193: 2018-08-31 | B193: Freitag | C193: Hinweis: andere Schleife, da Baustellen vorhanden sind | D193: Zugfahrt Norddeutsche-Schleife 1 Woche (2 Schichtbetrieb)_ größere Runde | E193: 928 | F193: 928 | G193: 928 | H193: 928 | I193: 928 | J193: 928 | K193: 928 | L193: 928 | M193: 928 | N193: 928 | O193: 928 | P193: 928 | Q193: 928 | R193: 928 | S193: 928 | T193: - | U193: - | V193: - | W193: 928 | X193: 928 | Y193: 928 | Z193: 928 | AA193: 928 | AB193: 928 | AC193: 928 | AD193: 826 | AE193: 826 | AF193: 826 | AG193: 826 | AH193: 826 | AI193: 826 | AJ193: 826 | AK193: 826 | AL193: 826 | AM193: 826 | AN193: 826 | AO193: 826 | AP193: 826 | AQ193: 826 | AR193: 826 | AV193: 826 | AW193: 826 | AX193: 826 | AY193: 826 | AZ193: 826 | BA193: 826 | BB193: 0
A194: 2018-09-01 | B194: Samstag | T194: - | U194: - | V194: -
A195: 2018-09-02 | B195: Sonntag | T195: - | U195: - | V195: -
A196: 2018-09-03 | B196: Montag | C196: Ursprünglich geplant für Entuppeln der Wagen. Hinweis: andere Schleife, da Baustellen vorhanden sind | T196: - | U196: - | V196: - | AD196: 413 | AE196: 413 | AF196: 413 | AG196: 413 | AH196: 413 | AI196: 413 | AJ196: 413 | AK196: 413 | AL196: 413 | AM196: 413 | AN196: 413 | AO196: 413 | AP196: 413 | AQ196: 413 | AR196: 413 | AV196: 413 | AW196: 413 | AX196: 413 | AY196: 413 | AZ196: 413 | BA196: 413 | BB196: 0
A197: 2018-09-04 | B197: Dienstag | C197: Ursprünglich geplant für Entuppeln der Wagen. Hinweis: andere Schleife, da Baustellen vorhanden sind | T197: - | U197: - | V197: - | AD197: 413 | AE197: 413 | AF197: 413 | AG197: 413 | AH197: 413 | AI197: 413 | AJ197: 413 | AK197: 413 | AL197: 413 | AM197: 413 | AN197: 413 | AO197: 413 | AP197: 413 | AQ197: 413 | AR197: 413 | AV197: 413 | AW197: 413 | AX197: 413 | AY197: 413 | AZ197: 413 | BA197: 413 | BB197: 0
A198: 2018-09-05 | B198: Mittwoch | C198: Entkuppeln der leeren Inno. Wagen jeder Gattung (insg. 4 Wagen) aus dem Zugverband--> Innotrans. Hinweis: andere Schleife, da Baustellen vorhanden sind !! | D198: Zugfahrt Norddeutsche-Schleife 1 Woche (2 Schichtbetrieb)_ größere Runde | E198: 928 | F198: 928 | G198: 928 | H198: 928 | I198: 928 | J198: 928 | K198: 928 | L198: 928 | M198: 928 | N198: 928 | O198: 928 | P198: 928 | Q198: 928 | R198: 928 | S198: 928 | T198: - | U198: - | V198: - | W198: 928 | X198: 928 | Y198: 928 | Z198: 928 | AA198: 928 | AB198: 928 | AC198: 928 | AD198: 826 | AE198: 826 | AF198: 826 | AG198: 826 | AH198: 826 | AI198: 826 | AJ198: 826 | AK198: 826 | AL198: 0 | AM198: 0 | AN198: 0 | AO198: 0 | AP198: 0 | AQ198: 826 | AR198: 0 | AV198: 826 | AW198: 826 | AX198: 0 | AY198: 0 | AZ198: 0 | BA198: 0 | BB198: 0
A199: 2018-09-06 | B199: Donnerstag | C199: Hinweis: andere Schleife, da Baustellen vorhanden sind | D199: Zugfahrt Norddeutsche-Schleife 1 Woche (2 Schichtbetrieb)_ größere Runde | E199: 928 | F199: 928 | G199: 928 | H199: 928 | I199: 928 | J199: 928 | K199: 928 | L199: 928 | M199: 928 | N199: 928 | O199: 928 | P199: 928 | Q199: 928 | R199: 928 | S199: 928 | T199: - | U199: - | V199: - | W199: 928 | X199: 928 | Y199: 928 | Z199: 928 | AA199: 928 | AB199: 928 | AC199: 928 | AD199: 826 | AE199: 826 | AF199: 826 | AG199: 826 | AH199: 826 | AI199: 826 | AJ199: 826 | AK199: 826 | AL199: 826 | AM199: 826 | AN199: 0 | AO199: 826 | AP199: 826 | AQ199: 826 | AR199: 0 | AV199: 826 | AW199: 826 | AX199: 0 | AY199: 0 | AZ199: 0 | BA199: 0 | BB199: 0
A200: 2018-09-07 | B200: Freitag | C200: Hinweis: andere Schleife, da Baustellen vorhanden sind | D200: Zugfahrt Norddeutsche-Schleife 1 Woche (2 Schichtbetrieb)_ größere Runde | E200: 928 | F200: 928 | G200: 928 | H200: 928 | I200: 928 | J200: 928 | K200: 928 | L200: 928 | M200: 928 | N200: 928 | O200: 928 | P200: 928 | Q200: 928 | R200: 928 | S200: 928 | T200: - | U200: - | V200: - | W200: 928 | X200: 928 | Y200: 928 | Z200: 928 | AA200: 928 | AB200: 928 | AC200: 928 | AD200: 413 | AE200: 413 | AF200: 413 | AG200: 413 | AH200: 413 | AI200: 413 | AJ200: 413 | AK200: 413 | AL200: 413 | AM200: 413 | AN200: 0 | AO200: 413 | AP200: 413 | AQ200: 413 | AR200: 0 | AV200: 413 | AW200: 413 | AX200: 413 | AY200: 413 | AZ200: 0 | BA200: 413 | BB200: 0
... 184 more rows

Sheet BMVI
B1: IST | C1: SOLL
A2: VTG 3780 7809 001-6 Ref-Kesselwagen mit AK | B2: =Betriebserprobung!AD385 -> 95559 | C2: =SUM(Betriebserprobung!E2:E375) -> 161592
A3: DB Cargo 3180 4868 629-5 Ref-BraCoil mit AK | B3: =Betriebserprobung!AE385 -> 95559 | C3: =SUM(Betriebserprobung!F2:F375) -> 161592
A4: VTG 3380 7932 226-3 Ref-Kesselwagen mit AK | B4: =Betriebserprobung!AF385 -> 95559 | C4: =SUM(Betriebserprobung!G2:G375) -> 161592
A5: DB Cargo 3180 4927 002-4 Inno-BraCoil | B5: =Betriebserprobung!AG385 -> 125894.3 | C5: =SUM(Betriebserprobung!H2:H375) -> 163352
A6: DB Cargo 3180 4927 004-0 Inno-BraCoil | B6: =Betriebserprobung!AH385 -> 149063.3 | C6: =SUM(Betriebserprobung!I2:I375) -> 163352
A7: DB Cargo 3180 4927 003-2 Inno-BraCoil | B7: =Betriebserprobung!AI385 -> 146140.3 | C7: =SUM(Betriebserprobung!J2:J375) -> 161592
A8: DB Cargo 3180 4868 524-8 Ref-BraCoil | B8: =Betriebserprobung!AJ385 -> 148700.3 | C8: =SUM(Betriebserprobung!K2:K375) -> 163352
A9: DB Cargo 3180 4868 218-7 Ref-BraCoil | B9: =Betriebserprobung!AK385 -> 152993.3 | C9: =SUM(Betriebserprobung!L2:L375) -> 163352
A10: VTG 37 80 7834 190-6 Inno-Kesselwagen | B10: =Betriebserprobung!AL385 -> 145784.3 | C10: =SUM(Betriebserprobung!M2:M375) -> 163352
A11: VTG 37 80 7834 191-4 Inno-Kesselwagen | B11: =Betriebserprobung!AM385 -> 131629.3 | C11: =SUM(Betriebserprobung!N2:N375) -> 153412
A12: VTG 37 80 7834 192-2 Inno-Kesselwagen | B12: =Betriebserprobung!AN385 -> 141024.3 | C12: =SUM(Betriebserprobung!O2:O375) -> 161592
A13: VTG 3387 7932 172-2 Ref-Kesselwagen | B13: =Betriebserprobung!AO385 -> 109331 | C13: =SUM(Betriebserprobung!P2:P375) -> 147747
A14: VTG 3780 7931 363-1 Ref-Kesselwagen | B14: =Betriebserprobung!AP385 -> 147350.3 | C14: =SUM(Betriebserprobung!Q2:Q375) -> 161960
A15: DB Cargo 2580 4382 001-2 Inno-ATW | B15: =Betriebserprobung!AQ385 -> 57872 | C15: =SUM(Betriebserprobung!R2:R375) -> 94675
A16: DB Cargo 2580 4382 002-0 Inno-ATW | B16: =Betriebserprobung!AR385 -> 89183 | C16: =SUM(Betriebserprobung!S2:S375) -> 129935
A17: DB Cargo 2580 4382 003-8 Inno-ATW | B17: =Betriebserprobung!AS385 -> 0 | C17: =SUM(Betriebserprobung!T2:T375) -> 0
A18: DB Cargo 2580 4382 004-6 Inno-ATW | B18: =Betriebserprobung!AU385 -> 67133.3 | C18: =SUM(Betriebserprobung!V281:V375) -> 66157 | D18: dieser ATW ist neu; mit den Radsätzen und Bremsen vom 001-2 ausgerüstet
A19: DB Cargo 2580 4382 005-3 Inno-ATW | B19: =Betriebserprobung!AT385 -> 36591.3 | C19: =SUM(Betriebserprobung!U324:U375) -> 31825 | D19: dieser ATW ist neu; mit den Radsätzen und Bremsen vom 002-0 ausgerüstet
A20: DB Cargo 2580 4371 415-7 Ref-ATW | B20: =Betriebserprobung!AV385 -> 142854.3 | C20: =SUM(Betriebserprobung!W2:W375) -> 161960
A21: DB Cargo 2580 4371 372-0 Ref-ATW | B21: =Betriebserprobung!AW385 -> 149299.3 | C21: =SUM(Betriebserprobung!X2:X375) -> 161960
A22: VTG 37 80 4576 781-1 Inno-CTW | B22: =Betriebserprobung!AX385 -> 126161.3 | C22: =SUM(Betriebserprobung!Y2:Y375) -> 152220
A23: VTG 37 80 4576 782-9 Inno-CTW | B23: =Betriebserprobung!AY385 -> 112937 | C23: =SUM(Betriebserprobung!Z2:Z375) -> 147747
A24: VTG 37 80 4576 783-7 Inno-CTW | B24: =Betriebserprobung!AZ385 -> 115680.3 | C24: =SUM(Betriebserprobung!AA2:AA375) -> 128354
A25: VTG 3780 4561 184-5 Ref-CTW | B25: =Betriebserprobung!BA385 -> 119831.3 | C25: =SUM(Betriebserprobung!AB2:AB375) -> 161960
A26: VTG 3780 4561 185-2 Ref-CTW | B26: =Betriebserprobung!BB385 -> 118051.3 | C26: =SUM(Betriebserprobung!AC2:AC375) -> 161960
